Transaction Reference,Supplier Name,Line Value,Department,Category,Transaction Date,Year/Period,SME,Costs split between Babergh and Mid Suffolk District Councils Y/N,% of transaction apportioned to Mid Suffolk District Council
10047320,AARON SERVICES LTD,"27,286.09",Planned Maint - Heating,Property Servicing,31-Mar-22,2223/01,SME,N,
10047521,AE WHITE SURFACING,411.85,Insurance Claims,Misc Premises Costs,31-Mar-22,2223/01,SME,N,
10047577,AE WHITE SURFACING,"8,241.00",Public Sector Decarbonisation,Prof & Consultancy Fees,13-Apr-22,2223/01,SME,N,
10047254,ALPHETON GARAGE LTD,550,Taxi & Private Hire Licensing,Contracted Services,01-Apr-22,2223/01,SME,N,
10047537,ANGLIAN WATER,431.59,Temporary Accommodation,Water Rates - Other Charges,04-Apr-22,2223/01,LGE,N,
10047564,BINDER LTD,484.5,Sewage Treatment Works,Contracted Services,31-Mar-22,2223/01,SME,N,
20027920,BLUE FLAME (COLCHESTER) LTD,"6,051.84",Current Liabilities,Cert IBS Creditors Holding ac,27-Apr-22,2223/01,SME,N,
10047312,BOTTOMLINE TECHNOLOGIES,667.8,ICT,Software Licnse (Line of Bus) ,31-Mar-22,2223/01,LGE,Y,50%
10047469,BOWER FULLER,277.73,Building Services,Repairs,31-Mar-22,2223/01,SME,N,
10047475,BOWER FULLER,"1,123.65",Assets & Development,Repairs,31-Mar-22,2223/01,SME,N,
10047478,BOWER FULLER,448.2,Tenancy Services,Fire Prevention,31-Mar-22,2223/01,SME,N,
10047479,BOWER FULLER,506.52,Sheltered Accommodation,Fire Prevention,31-Mar-22,2223/01,SME,N,
10047250,CAPITA BUSINESS SERVICES LTD,"45,000.00",Open Housing Joint Project,Software Licnse (Line of Bus) ,30-Mar-22,2223/01,LGE,Y,50%
10047578,CAPITA BUSINESS SERVICES LTD,"137,613.00",Open Housing Joint Project,Software Licnse (Line of Bus) ,14-Mar-22,2223/01,LGE,Y,50%
10047602,AQUASAMPLERS,600,Water Sampling,Sampling & Analysis,31-Mar-22,2223/01,SME,N,
10047373,CHIPSIDE LTD,308.92,Sudb C Parks,Contracted Services,31-Mar-22,2223/01,SME,N,
10047173,D W ADAMS LTD,814,Building Services,Repairs,30-Mar-22,2223/01,SME,N,
10047309,D W ADAMS LTD,"4,480.00",Council House Adaptions,Improvements,05-Apr-22,2223/01,SME,N,
10047394,D W ADAMS LTD,"1,509.00",Council House Adaptions,Improvements,08-Apr-22,2223/01,SME,N,
10047505,D W ADAMS LTD,"2,045.00",Council House Adaptions,Improvements,12-Apr-22,2223/01,SME,N,
10047621,D W ADAMS LTD,294,Building Services,Repairs,22-Apr-22,2223/01,SME,N,
10047248,EAST SUFFOLK INTERNAL DRAINAGE BOARD,"1,907.00",Land Drainage,Misc Supplies & Services Costs,01-Apr-22,2223/01,SME,N,
10047319,ENER-G SWITCH2 LTD,451.78,Temporary Accommodation,Repairs,05-Apr-22,2223/01,SME,N,
10047329,ENGLISH SECURITY,"24,952.03",Sheltered Units-Gen.Imp,Improvements,30-Mar-22,2223/01,SME,N,
10047332,ENGLISH SECURITY,429.1,Sheltered Accommodation,Fire Prevention,30-Mar-22,2223/01,SME,N,
10047337,ENGLISH SECURITY,360,Building Services,Repairs,05-Apr-22,2223/01,SME,N,
10047337,ENGLISH SECURITY,360,Building Services,Repairs,05-Apr-22,2223/01,SME,N,
10047453,ENVIRONMENT AGENCY,890,Sewage Treatment Works,Water Rates - Other Charges,01-Apr-22,2223/01,LGE,N,
10047454,ENVIRONMENT AGENCY,"4,250.00",Sewage Treatment Works,Water Rates - Other Charges,01-Apr-22,2223/01,LGE,N,
10047218,FELLBRIDGE BUILDING SERVICES,"13,709.71",Building Services,Repairs,31-Mar-22,2223/01,SME,N,
10047237,FELLBRIDGE BUILDING SERVICES,"1,573.54",Insulation Imps,Improvements,31-Mar-22,2223/01,SME,N,
10047370,FELLBRIDGE BUILDING SERVICES,"1,429.20",Building Services,Repairs,07-Apr-22,2223/01,SME,N,
10047606,FELLBRIDGE BUILDING SERVICES,294.99,Building Services,Repairs,21-Apr-22,2223/01,SME,N,
10047607,FELLBRIDGE BUILDING SERVICES,613.28,Building Services,Repairs,21-Apr-22,2223/01,SME,N,
10047608,FELLBRIDGE BUILDING SERVICES,"9,638.83",Building Services,Repairs,21-Apr-22,2223/01,SME,N,
10047236,FORE-MOST GARAGE DOORS LTD,649,Building Services,Repairs,31-Mar-22,2223/01,SME,N,
10047236,FORE-MOST GARAGE DOORS LTD,513.33,Building Services,Repairs,31-Mar-22,2223/01,SME,N,
10047236,FORE-MOST GARAGE DOORS LTD,"2,754.66",Building Services,Repairs,31-Mar-22,2223/01,SME,N,
10047263,GB ADAPTIONS LTD,"5,480.00",Mand Disabled Facilities Grant,Grants,04-Apr-22,2223/01,SME,N,
10047347,GB ADAPTIONS LTD,"7,494.22",Mand Disabled Facilities Grant,Grants,06-Apr-22,2223/01,SME,N,
10047744,GB ADAPTIONS LTD,"5,844.06",Mand Disabled Facilities Grant,Grants,28-Apr-22,2223/01,SME,N,
10047363,GLASDON UK LTD,546.99,Open Spaces,"Equipment, Tools & Materials",06-Apr-22,2223/01,LGE,N,
10047363,GLASDON UK LTD,87.78,Open Spaces,"Equipment, Tools & Materials",06-Apr-22,2223/01,LGE,N,
10047279,HAYES DIGGINS BUILDERS,660,Building Services,Repairs,04-Apr-22,2223/01,SME,N,
10047280,HAYES DIGGINS BUILDERS,"5,590.00",Insulation Imps,Improvements,04-Apr-22,2223/01,SME,N,
10047494,KEN GRIME & SON LTD,627.95,Building Services,Repairs,11-Apr-22,2223/01,SME,N,
10047495,KEN GRIME & SON LTD,"1,016.26",Building Services,Repairs,11-Apr-22,2223/01,SME,N,
10047575,KEN GRIME & SON LTD,899.81,Building Services,Repairs,20-Apr-22,2223/01,SME,N,
10047570,KENDA-CLEAN,14,Chilton Depot,Window Cleaning,13-Apr-22,2223/01,SME,Y,50%
10047570,KENDA-CLEAN,93,Temporary Accommodation,Window Cleaning,13-Apr-22,2223/01,SME,N,
10047570,KENDA-CLEAN,954,Sheltered Accommodation,Window Cleaning,13-Apr-22,2223/01,SME,N,
10047570,KENDA-CLEAN,431,Tenancy Services,Window Cleaning,13-Apr-22,2223/01,SME,N,
10047292,M & H CIVIL ENGINEERING LTD,550,Building Services,Repairs,22-Feb-22,2223/01,SME,N,
10047504,M & H CIVIL ENGINEERING LTD,605,Building Services,Repairs,08-Apr-22,2223/01,SME,N,
10046859,MALJON TIMBER PRESERVATION LTD,"1,251.00",Building Services,Repairs,14-Mar-22,2223/01,SME,N,
10047091,MALJON TIMBER PRESERVATION LTD,"1,585.00",Building Services,Repairs,25-Mar-22,2223/01,SME,N,
10047325,MATERIAL CHANGE COMPOSTING LTD,"1,429.33",Open Spaces,Waste Disposal,31-Mar-22,2223/01,LGE,N,
10047675,MB TREES (EAST ANGLIA) LTD,"2,380.00",Amenity Areas,Tree felling/maintenance,26-Apr-22,2223/01,SME,N,
10047355,MERCURY BUILDING SERVICES LTD,"9,310.84",Pld Maint/Enhncmts-Kingfisher,Improvements,06-Apr-22,2223/01,SME,N,
10047355,MERCURY BUILDING SERVICES LTD,"1,139.16",Kingfisher Leisure Centre,Repairs,06-Apr-22,2223/01,SME,N,
10047562,MONTHIND CLEAN LTD,665.83,Jnt Waste Contract,General Cleaning,15-Apr-22,2223/01,LGE,Y,50%
10047597,NEEDHAM MARKET AERIALS LTD,255,Stairlifts,Repairs,21-Apr-22,2223/01,SME,N,
10047098,PITMAN BROTHERS (DECORATORS) LTD,330,Building Services,Repairs,26-Mar-22,2223/01,SME,N,
10047283,PLASUFIX LTD,"1,495.00",Major Imps,Improvements,31-Mar-22,2223/01,SME,N,
10046999,PRO-FLAT SPECIALIST SERVICES LTD,"2,307.50",Roofing,Improvements,18-Mar-22,2223/01,SME,N,
10047421,PRO-FLAT SPECIALIST SERVICES LTD,"1,580.00",Major Imps,Improvements,31-Mar-22,2223/01,SME,N,
10047422,PRO-FLAT SPECIALIST SERVICES LTD,"1,340.00",Roofing,Improvements,31-Mar-22,2223/01,SME,N,
10047590,R H ENVIRONMENTAL LTD,"6,000.00",ICT,Software Licnse (Line of Bus) ,20-Apr-22,2223/01,LGE,Y,50%
10046983,REID PLUMBING & HEATING CONTRACTORS LTD,"8,845.27",Central Heating,Major Contracts,21-Mar-22,2223/01,SME,N,
10047037,REID PLUMBING & HEATING CONTRACTORS LTD,"21,243.95",Central Heating,Major Contracts,23-Mar-22,2223/01,SME,N,
10047140,REID PLUMBING & HEATING CONTRACTORS LTD,"18,894.39",Central Heating,Major Contracts,29-Mar-22,2223/01,SME,N,
10047155,REID PLUMBING & HEATING CONTRACTORS LTD,"9,569.17",Central Heating,Major Contracts,28-Mar-22,2223/01,SME,N,
10047346,REID PLUMBING & HEATING CONTRACTORS LTD,"8,264.98",Central Heating,Major Contracts,06-Apr-22,2223/01,SME,N,
10047485,SEAGER HOME SOLUTIONS,"6,121.77",Building Services,Repairs,11-Apr-22,2223/01,SME,N,
10047239,SOLACE GROUP LTD,322.68,Organisational Devt,Training,31-Mar-22,2223/01,SME,Y,50%
10047364,SPALDINGS LTD,453.72,Open Spaces,Grounds & Site Maintenance,06-Apr-22,2223/01,SME,N,
10047366,STERLING INTERNATIONAL BROKERS LTD,"3,989.04",Treasury Management,Prof & Consultancy Fees,31-Mar-22,2223/01,SME,N,
10047493,STEVEN R.POTKINS LTD,"15,373.00",Mand Disabled Facilities Grant,Grants,11-Apr-22,2223/01,SME,N,
10047211,SUFFOLK TREE SERVICES LTD,"1,250.00",Public Tree Programme,Tree felling/maintenance,31-Mar-22,2223/01,SME,N,
10047438,SUREFIX,800,Building Services,Repairs,06-Apr-22,2223/01,SME,N,
10047439,SUREFIX,"1,200.00",Major Imps,Improvements,05-Apr-22,2223/01,SME,N,
10047629,SUREFIX,"1,300.00",Major Imps,Repairs,20-Apr-22,2223/01,SME,N,
10047601,THE PLAY INSPECTION COMPANY LTD,415,Open Spaces,Training,21-Apr-22,2223/01,SME,N,
10047667,VODAFONE CORPORATE LTD,465,ICT,Telephone Costs,26-Apr-22,2223/01,LGE,N,
10047261,WINDIMAN LTD,"1,989.76",Major Imps,Improvements,31-Mar-22,2223/01,SME,N,
10047424,WINDIMAN LTD,760,Building Services,Repairs,08-Apr-22,2223/01,SME,N,
10047676,WORKWEAR (EAST ANGLIA) LTD,341.78,Street & Major Road Cleansing,Protective clothing,07-Apr-22,2223/01,SME,N,
10047221,ARCHANT COMMUNITY MEDIA LTD,525,RHSSF,Advertising&mkting (non-staff),31-Mar-22,2223/01,LGE,N,
10047314,ARCHANT COMMUNITY MEDIA LTD,933.2,Devt Management -Applications,Advertising&mkting (non-staff),31-Mar-22,2223/01,LGE,N,
10047357,ARCHANT COMMUNITY MEDIA LTD,472.77,Devt Management -Applications,Advertising&mkting (non-staff),11-Dec-21,2223/01,LGE,N,
10047358,ARCHANT COMMUNITY MEDIA LTD,656.62,Devt Management -Applications,Advertising&mkting (non-staff),18-Dec-21,2223/01,LGE,N,
10047360,ARCHANT COMMUNITY MEDIA LTD,446.51,Devt Management -Applications,Advertising&mkting (non-staff),31-Jan-22,2223/01,LGE,N,
10047501,ARCHANT COMMUNITY MEDIA LTD,964.1,Devt Management -Applications,Advertising&mkting (non-staff),09-Apr-22,2223/01,LGE,N,
10047377,LOCAL GOVERNMENT ASSOCIATION,495,Management Team,Conference Expenses,07-Apr-22,2223/01,LGE,Y,50%
10047377,LOCAL GOVERNMENT ASSOCIATION,990,Cost of Democracy,Member's Courses & Conferences,07-Apr-22,2223/01,LGE,N,
20027906,LOCAL GOVERNMENT ASSOCIATION,"9,129.88",Governance,Subscriptions,12-Apr-22,2223/01,LGE,N,
10047240,ESSEX COUNTY COUNCIL,300,Pre App Charging,Ecology Consultancy,31-Mar-22,2223/01,LGE,N,
10047738,IDOX SOFTWARE LTD,"3,050.00",Community Safety-General,Contributions & Donations,28-Apr-22,2223/01,SME,Y,50%
10047738,IDOX SOFTWARE LTD,"4,575.00",Economy & Business,Prof & Consultancy Fees,28-Apr-22,2223/01,SME,Y,50%
10047241,BUILDBASE,324.3,Assets & Development,Repairs,31-Mar-22,2223/01,LGE,N,
10047244,IPSWICH BOROUGH COUNCIL,"1,391.25",Endeavour House - HQ,NNDR Payable,01-Mar-22,2223/01,LGE,Y,50%
10047245,IPSWICH BOROUGH COUNCIL,"1,365.00",Endeavour House - HQ,NNDR Payable,01-Mar-22,2223/01,LGE,Y,50%
20027908,EDF ENERGY,938.28,HQ Energy,Electricity,04-Apr-22,2223/01,LGE,N,
20027908,EDF ENERGY,"3,789.85",Hadleigh Pool,Electricity,04-Apr-22,2223/01,LGE,N,
20027908,EDF ENERGY,-700.25,Climate Change and Sustainabil,Electricity,04-Apr-22,2223/01,LGE,N,
20027908,EDF ENERGY,"4,469.62",Sheltered Accommodation,Electricity,04-Apr-22,2223/01,LGE,N,
20027908,EDF ENERGY,336.72,Tenancy Services,Electricity,04-Apr-22,2223/01,LGE,N,
10047558,J BREHENY CONTRACTORS LTD,"57,741.15","Schoolfield, Glemsford",Improvements,14-Apr-22,2223/01,LGE,N,
10047251,ERNST & YOUNG LLP,"2,835.00",Ext Audit,Audit Fees,02-Mar-22,2223/01,LGE,N,
20027913,GPC BARCLAYS,"7,944.21",Current Assets,Barclaycard Control,16-Apr-22,2223/01,LGE,Y,15%
20027914,COMPUTERSHARE ,636,Current Assets,ChildCare Vouchers-Control,22-Apr-22,2223/01,LGE,N,
20027865,ACTON PARISH COUNCIL,"2,525.01",Current Liabilities,Parish Payments Available,06-Apr-22,2223/01,SME,N,
20027866,ASSINGTON PARISH COUNCIL,"5,896.29",Current Liabilities,Parish Payments Available,06-Apr-22,2223/01,SME,N,
20027867,BENTLEY PARISH COUNCIL,"7,244.13",Current Liabilities,Parish Payments Available,06-Apr-22,2223/01,SME,N,
20027868,BOXFORD PARISH COUNCIL,"3,035.56",Current Liabilities,Parish Payments Available,06-Apr-22,2223/01,SME,N,
20027869,BRANTHAM PARISH COUNCIL,"9,734.69",Current Liabilities,Parish Payments Available,06-Apr-22,2223/01,SME,N,
20027870,CAPEL ST MARY PARISH COUNCIL,"57,554.12",Current Liabilities,Parish Payments Available,06-Apr-22,2223/01,SME,N,
20027879,CHATTISHAM & HINTLESHAM PARISH COUNCIL,"10,674.76",Current Liabilities,Parish Payments Available,06-Apr-22,2223/01,SME,N,
20027871,COCKFIELD PARISH COUNCIL,"39,853.61",Current Liabilities,Parish Payments Available,06-Apr-22,2223/01,SME,N,
20027872,COPDOCK & WASHBROOK PARISH COUNCIL,"20,509.11",Current Liabilities,Parish Payments Available,06-Apr-22,2223/01,SME,N,
20027873,EDWARDSTONE PARISH COUNCIL,"3,557.58",Current Liabilities,Parish Payments Available,06-Apr-22,2223/01,SME,N,
20027874,GLEMSFORD PARISH COUNCIL,"9,111.97",Current Liabilities,Parish Payments Available,06-Apr-22,2223/01,SME,N,
20027875,GREAT CORNARD PARISH COUNCIL,"19,474.50",Current Liabilities,Parish Payments Available,06-Apr-22,2223/01,SME,N,
20027876,GREAT WALDINGFIELD PARISH COUNCIL,"7,472.10",Current Liabilities,Parish Payments Available,06-Apr-22,2223/01,SME,N,
20027877,HADLEIGH TOWN COUNCIL,"87,202.36",Current Liabilities,Parish Payments Available,06-Apr-22,2223/01,SME,N,
20027878,HARTEST PARISH COUNCIL,865.29,Current Liabilities,Parish Payments Available,06-Apr-22,2223/01,SME,N,
20027880,HITCHAM PARISH COUNCIL,"5,098.99",Current Liabilities,Parish Payments Available,06-Apr-22,2223/01,SME,N,
20027881,HOLBROOK PARISH COUNCIL,"1,322.02",Current Liabilities,Parish Payments Available,06-Apr-22,2223/01,SME,N,
20027882,HOLTON ST MARY PARISH COUNCIL,"1,973.40",Current Liabilities,Parish Payments Available,06-Apr-22,2223/01,SME,N,
20027883,LAVENHAM PARISH COUNCIL,"78,438.09",Current Liabilities,Parish Payments Available,06-Apr-22,2223/01,SME,N,
20027884,LAWSHALL PARISH COUNCIL,"16,660.52",Current Liabilities,Parish Payments Available,06-Apr-22,2223/01,SME,N,
20027885,LONG MELFORD PARISH COUNCIL,"54,445.24",Current Liabilities,Parish Payments Available,06-Apr-22,2223/01,SME,N,
20027886,MONKS ELEIGH PARISH COUNCIL,"3,327.53",Current Liabilities,Parish Payments Available,06-Apr-22,2223/01,SME,N,
20027887,NAYLAND WITH WISSINGTON PARISH COUNCIL,"18,821.88",Current Liabilities,Parish Payments Available,06-Apr-22,2223/01,SME,N,
20027888,NEDGING WITH NAUGHTON PARISH COUNCIL,"4,093.56",Current Liabilities,Parish Payments Available,06-Apr-22,2223/01,SME,N,
10047700,NEWTON PARISH COUNCIL,"2,798.03",CIL Funded REFCUS,Grants,26-Apr-22,2223/01,SME,N,
20027889,NEWTON PARISH COUNCIL,"14,198.37",Current Liabilities,Parish Payments Available,06-Apr-22,2223/01,SME,N,
20027890,PRESTON ST MARY PARISH COUNCIL,"9,020.03",Current Liabilities,Parish Payments Available,06-Apr-22,2223/01,SME,N,
20027891,RAYDON PARISH COUNCIL,"5,469.82",Current Liabilities,Parish Payments Available,06-Apr-22,2223/01,SME,N,
20027892,SHIMPLING PARISH COUNCIL,"1,970.63",Current Liabilities,Parish Payments Available,06-Apr-22,2223/01,SME,N,
20027893,SPROUGHTON PARISH COUNCIL,"4,093.30",Current Liabilities,Parish Payments Available,06-Apr-22,2223/01,SME,N,
20027894,STANSTEAD PARISH COUNCIL,"3,977.77",Current Liabilities,Parish Payments Available,06-Apr-22,2223/01,SME,N,
20027895,STOKE BY NAYLAND PARISH COUNCIL,"1,343.33",Current Liabilities,Parish Payments Available,06-Apr-22,2223/01,SME,N,
20027896,STUTTON PARISH COUNCIL,"30,732.01",Current Liabilities,Parish Payments Available,06-Apr-22,2223/01,SME,N,
10046869,SUDBURY COMMON LANDS CHARITY,"5,261.27",Open Spaces,Contracted Services,15-Mar-22,2223/01,SME,N,
10046869,SUDBURY COMMON LANDS CHARITY,"9,197.88",Open Spaces,Contracted Services,15-Mar-22,2223/01,SME,N,
20027897,SUDBURY TOWN COUNCIL,"17,189.26",Current Liabilities,Parish Payments Available,06-Apr-22,2223/01,SME,N,
20027898,TATTINGSTONE PARISH COUNCIL,"10,838.85",Current Liabilities,Parish Payments Available,06-Apr-22,2223/01,SME,N,
10047381,SUFFOLK COUNTY COUNCIL,"6,250.00",Jnt Waste Contract,Subscriptions,06-Apr-22,2223/01,LGE,N,
10047427,SUFFOLK COUNTY COUNCIL,"1,650.00",Pre App Charging,Highways  Consultancy,07-Apr-22,2223/01,LGE,N,
10047428,SUFFOLK COUNTY COUNCIL,"1,195.00",Land Chgs,Contracted Services,07-Apr-22,2223/01,LGE,N,
10047487,SUFFOLK COUNTY COUNCIL,"2,970.00",ICT,Contracted Services,08-Apr-22,2223/01,LGE,Y,50%
10047500,SUFFOLK COUNTY COUNCIL,"1,155.00",Pre App Charging,Prof & Consultancy Fees,11-Apr-22,2223/01,LGE,N,
10047569,SUFFOLK COUNTY COUNCIL,"25,534.00",ICT,Computer Equpt Purchases,14-Apr-22,2223/01,LGE,Y,50%
10047623,SUFFOLK COUNTY COUNCIL,716.85,ICT,Desktop Software,21-Apr-22,2223/01,LGE,Y,50%
10047652,SUFFOLK COUNTY COUNCIL,"25,401.00",Civil Protection & Emerg Plg,Contributions & Donations,22-Apr-22,2223/01,LGE,N,
10045430,REED SPECIALIST RECRUITMENT LTD,578.68,Governance,Agency Staff,14-Apr-22,2223/01,LGE,Y,50%
10045430,REED SPECIALIST RECRUITMENT LTD,151.81,Bus Imp (Corp),Agency Staff,14-Apr-22,2223/01,LGE,Y,50%
10047271,REED SPECIALIST RECRUITMENT LTD,735.93,Financial Servs,Agency Staff,25-Mar-22,2223/01,LGE,Y,50%
10047446,REED SPECIALIST RECRUITMENT LTD,741.48,Financial Servs,Agency Staff,08-Apr-22,2223/01,LGE,Y,50%
10047554,REED SPECIALIST RECRUITMENT LTD,711.42,Financial Servs,Agency Staff,08-Apr-22,2223/01,LGE,Y,50%
10047633,REED SPECIALIST RECRUITMENT LTD,601.2,Financial Servs,Agency Staff,22-Apr-22,2223/01,LGE,Y,50%
10047349,THE HELPING HAND COMPANY,"1,041.18",RHSSF,"Equipment, Tools & Materials",06-Apr-22,2223/01,SME,N,
10047532,THE HELPING HAND COMPANY,944.03,RHSSF,"Equipment, Tools & Materials",13-Apr-22,2223/01,SME,N,
10047498,BUPA,"9,346.54",Organisational Devt,Contracted Services,01-Apr-22,2223/01,LGE,Y,16%
10047713,TELEFONICA UK LIMITED - O2,353.14,ICT,Telephone Costs,27-Apr-22,2223/01,LGE,Y,50%
20027904,COPDOCK & WASHBROOK VILLAGE HALL,310,General Elections,Room Hire,07-Apr-22,2223/01,SME,N,
10047615,GAZPROM ENERGY,205.7,Belle Vue House,Gas,20-Apr-22,2223/01,SME,N,
10047615,GAZPROM ENERGY,68.55,HQ Energy,Gas,20-Apr-22,2223/01,SME,N,
10047615,GAZPROM ENERGY,"2,759.10",Sheltered Accommodation,Gas,20-Apr-22,2223/01,SME,N,
10047615,GAZPROM ENERGY,228.43,Temporary Accommodation,Gas,20-Apr-22,2223/01,SME,N,
10047281,HARWICH HARBOUR FERRY SERVICES LTD,"1,000.00",Visitor Economy,Grants,04-Apr-22,2223/01,SME,N,
10047510,SUFFOLK AGRICULTURAL ASSOCIATION,290,Guaranteed Rent Scheme,Misc Premises Costs,28-Mar-22,2223/01,SME,Y,50%
10047123,WHYBROW PROPERTY SOLUTIONS LTD,"1,173.38",Building Services,Repairs,28-Mar-22,2223/01,SME,N,
10047284,WHYBROW PROPERTY SOLUTIONS LTD,"1,216.23",Building Services,Repairs,04-Apr-22,2223/01,SME,N,
10047290,WHYBROW PROPERTY SOLUTIONS LTD,"6,446.42","Fences, Gates and Walls",Improvements,04-Apr-22,2223/01,SME,N,
10047324,WHYBROW PROPERTY SOLUTIONS LTD,"12,304.19",Building Services,Repairs,05-Apr-22,2223/01,SME,N,
10047328,WHYBROW PROPERTY SOLUTIONS LTD,"1,091.76",Building Services,Repairs,05-Apr-22,2223/01,SME,N,
10047443,WHYBROW PROPERTY SOLUTIONS LTD,"1,693.96",Building Services,Repairs,08-Apr-22,2223/01,SME,N,
10047444,WHYBROW PROPERTY SOLUTIONS LTD,"5,190.59",Building Services,Repairs,08-Apr-22,2223/01,SME,N,
10047138,L A C CLEANING CONTRACTORS LIMITED,985.5,Building Services,Repairs,25-Mar-22,2223/01,SME,N,
10047163,L A C CLEANING CONTRACTORS LIMITED,633.33,Sheltered Accommodation,General Cleaning,30-Mar-22,2223/01,SME,N,
10047165,L A C CLEANING CONTRACTORS LIMITED,857.5,Wenham Depot TDP,General Cleaning,28-Mar-22,2223/01,SME,Y,50%
10047353,L A C CLEANING CONTRACTORS LIMITED,"2,695.00",Building Services,Repairs,06-Apr-22,2223/01,SME,N,
10047354,L A C CLEANING CONTRACTORS LIMITED,"2,250.00",Building Services,Repairs,28-Mar-22,2223/01,SME,N,
10047530,L A C CLEANING CONTRACTORS LIMITED,790.5,Building Services,Repairs,14-Apr-22,2223/01,SME,N,
10047228,WEST SUFFOLK COLLEGE,"25,000.00",Economy & Business,Misc Supplies & Services Costs,31-Mar-22,2223/01,LGE,N,
10047565,CHILDCARE VOUCHER LTD EDENRED (UK GROUP),957.75,Health & Safety,Misc Employee Costs,19-Apr-22,2223/01,SME,Y,50%
10047503,OPUS PEOPLE SOLUTIONS LTD,470.59,Homeless Prevention Fund,Agency Staff,07-Apr-22,2223/01,SME,N,
10047503,OPUS PEOPLE SOLUTIONS LTD,91.16,Governance,Agency Staff,07-Apr-22,2223/01,SME,N,
10047503,OPUS PEOPLE SOLUTIONS LTD,258.79,Domestic Waste,Agency Staff,07-Apr-22,2223/01,SME,N,
10047531,ROSE BUILDERS LTD,"61,676.48",Structural Works,Major Contracts,31-Mar-22,2223/01,SME,N,
10047297,ECOSYSTEMS TREE & GROUNDS CARE,535,Public Tree Programme,Tree felling/maintenance,04-Apr-22,2223/01,SME,N,
10047298,ECOSYSTEMS TREE & GROUNDS CARE,535,Sheltered Accommodation,Tree felling/maintenance,04-Apr-22,2223/01,SME,N,
10047299,ECOSYSTEMS TREE & GROUNDS CARE,300,CCTV Cameras,"Equipment, Tools & Materials",04-Apr-22,2223/01,SME,N,
10047506,CORNERSTONE BARRISTERS,"1,250.00",Building Services,Prof & Consultancy Fees,12-Apr-22,2223/01,SME,N,
10047506,CORNERSTONE BARRISTERS,"1,250.00",Building Services,Prof & Consultancy Fees,12-Apr-22,2223/01,SME,Y,
10047417,VERTAS GROUP LTD,"12,894.63",Central Postal Serv,Postage,08-Apr-22,2223/01,SME,Y,50%
10047122,COLLINS SKIP HIRE,"1,100.00",Building Services,Waste Disposal,28-Mar-22,2223/01,SME,Y,50%
10047243,COLLINS SKIP HIRE,275,Building Services,Waste Disposal,31-Mar-22,2223/01,SME,Y,50%
10047467,COLLINS SKIP HIRE,"1,375.00",Building Services,Waste Disposal,11-Apr-22,2223/01,SME,Y,50%
10047559,COLLINS SKIP HIRE,275,Building Services,Waste Disposal,19-Apr-22,2223/01,SME,Y,50%
10047362,MATT ALLMAN LTD T/A MOVEITCLEARITFINDIT,550,Homeless Prevention Fund,Removal Expenses,07-Apr-22,2223/01,SME,N,
10047386,INTEGRA USER GROUP,385,Financial Servs,Subscriptions,31-Mar-22,2223/01,SME,Y,50%
10047391,HEALTH  ASSURED LTD,"5,277.72",Organisational Devt,Contracted Services,01-Apr-22,2223/01,LGE,Y,50%
10047249,NAFN DATA AND INTELLIGENCE SERVICES,"1,600.00",Management Team,Subscriptions,01-Jan-22,2223/01,SME,N,
10047270,HAYS SPECIALIST RECRUITMENT LTD,"1,890.00",Financial Servs,Agency Staff,01-Apr-22,2223/01,LGE,Y,50%
10047508,HAYS SPECIALIST RECRUITMENT LTD,"1,555.88",Financial Servs,Agency Staff,12-Apr-22,2223/01,LGE,Y,50%
10047594,HAYS SPECIALIST RECRUITMENT LTD,"1,555.88",Financial Servs,Agency Staff,20-Apr-22,2223/01,LGE,Y,50%
10047595,HAYS SPECIALIST RECRUITMENT LTD,"1,944.85",Financial Servs,Agency Staff,20-Apr-22,2223/01,LGE,Y,50%
10047247,RICHARD UTTING ASSOCIATES LLP,"2,890.00",Bourne Hill Wherstead S106 acq,Prof & Consultancy Fees,31-Mar-22,2223/01,SME,N,
10047252,RICHARD UTTING ASSOCIATES LLP,"1,889.18",Waldingfield Rd S106 Andersons,Prof & Consultancy Fees,31-Mar-22,2223/01,SME,N,
10047523,NORTHERN HOUSING CONSORTIUM,"1,275.00",General/Supervision & Mgmt,Subscriptions,01-Apr-22,2223/01,SME,Y,50%
10047411,PUBLIC SEWER SERVICES,825.9,Building Services,Repairs,31-Mar-22,2223/01,SME,N,
10047413,PUBLIC SEWER SERVICES,794.41,Building Services,Repairs,31-Mar-22,2223/01,SME,N,
10047414,PUBLIC SEWER SERVICES,785.83,Building Services,Repairs,31-Mar-22,2223/01,SME,N,
10047626,PUBLIC SEWER SERVICES,397.39,Building Services,Repairs,19-Apr-22,2223/01,SME,N,
10047742,PRIVATE LANDLORD,680,Guaranteed Rent Scheme,Rent Payable,28-Apr-22,2223/01,SME,N,
10047755,CHARISMA SPATIAL PLANNING LTD T/A ANN SK,"3,034.20",Nghbrhd Plan Designations,Prof & Consultancy Fees,27-Apr-22,2223/01,SME,N,
10047512,EXACOM SYSTEMS LTD,"9,540.00",ICT,Software Licnse (Line of Bus) ,06-Apr-22,2223/01,SME,Y,50%
10047455,ASPECT CONTRACTS LTD,"1,961.00",Asbestos,Improvements,31-Mar-22,2223/01,LGE,N,
20027864,RIX PETROLEUM (EAST ANGLIA) LTD,146.21,Tenancy Services,Heating Oil,04-Apr-22,2223/01,SME,N,
20027864,RIX PETROLEUM (EAST ANGLIA) LTD,"6,265.59",Open Spaces,Plant & Vehicle Fuel,04-Apr-22,2223/01,SME,Y,50%
10047331,KNOWLES ASSOCIATES TFM LTD,889.7,RHSSF,"Equipment, Tools & Materials",24-Mar-22,2223/01,SME,N,
10047541,GIPPING OCCUPATIONAL HEALTH LTD,"1,323.00",Health & Safety,Contracted Services,14-Apr-22,2223/01,SME,Y,50%
10047300,AIRMAX REMOTE LTD,459.24,Building Services,Plant & Vehicle - Other costs,31-Mar-22,2223/01,SME,Y,50%
10047382,GRAVITAS RECRUITMENT GROUP LTD,"2,500.00",ICT,Agency Staff,05-Apr-22,2223/01,LGE,Y,50%
10047502,GRAVITAS RECRUITMENT GROUP LTD,"2,000.00",ICT,Agency Staff,11-Apr-22,2223/01,LGE,Y,50%
10047519,WS TRAINING LTD,610,Street & Major Road Cleansing,Plant & Vehicle - Other costs,11-Apr-22,2223/01,SME,N,
10047496,JOHN FORD GROUP LTD,"6,818.59",Mand Disabled Facilities Grant,Grants,12-Apr-22,2223/01,SME,N,
10047739,IPSWICH TOWN FOOTBALL CLUB CO. LTD,"1,185.00",Financial Servs,Room Hire,22-Apr-22,2223/01,LGE,Y,50%
10047534,TOP FLOORS (EAST ANGLIA) LTD,749.23,Other Temp Accommodation,"Equipment, Tools & Materials",06-Apr-22,2223/01,SME,N,
10047544,SUDBURYS,440,Guaranteed Rent Scheme,Rent Payable,19-Apr-22,2223/01,SME,N,
20027905,SUDBURYS,969,Rent Deposit Scheme,Misc Premises Costs,08-Apr-22,2223/01,SME,N,
10047458,WILLIAM H BROWN ESTATE AGENTS - SUDBURY,725,Guaranteed Rent Scheme,Rent Payable,11-Apr-22,2223/01,SME,N,
10047734,ESSEX & SUFFOLK PEST SOLUTIONS,414,Tenancy Services,Contracted Services,12-Apr-22,2223/01,SME,N,
10047288,ABBEYCROFT LEISURE,"2,040.00",Holiday Activity Funding,"Equipment, Tools & Materials",04-Apr-22,2223/01,LGE,N,
10047311,ABBEYCROFT LEISURE,"17,762.50",Hadleigh Pool,Major Contracts,01-Apr-22,2223/01,LGE,N,
10047311,ABBEYCROFT LEISURE,"8,047.50",New Hadl Pl & Leisure Centre,Major Contracts,01-Apr-22,2223/01,LGE,N,
10047311,ABBEYCROFT LEISURE,"34,925.00",Kingfisher Leisure Centre,Major Contracts,01-Apr-22,2223/01,LGE,N,
10047310,BELLWAY HOMES LIMITED (ESSEX DIVISION),"521,020.50",Bourne Hill Wherstead S106 acq,Prof & Consultancy Fees,09-Mar-22,2223/01,LGE,N,
10047463,EARTH ANCHORS LTD,"1,260.00",RHSSF,"Equipment, Tools & Materials",21-Jan-22,2223/01,SME,N,
10047294,A C LEIGH (NORWICH) LTD,314.99,Building Services,"Equipment, Tools & Materials",30-Mar-22,2223/01,SME,N,
10047585,A C LEIGH (NORWICH) LTD,343.16,Building Services,"Equipment, Tools & Materials",07-Apr-22,2223/01,SME,N,
10047587,A C LEIGH (NORWICH) LTD,270.47,Building Services,"Equipment, Tools & Materials",13-Apr-22,2223/01,SME,N,
10047550,3 POINT PROPERTY MANAGEMENT LTD,550,Guaranteed Rent Scheme,Rent Payable,19-Apr-22,2223/01,SME,N,
10047488,WEST SUFFOLK COUNCIL,"3,873.21",Building Services,Postage,06-Apr-22,2223/01,LGE,Y,50%
10047262,EAST SUFFOLK COUNCIL,"49,534.00",COVID Housing Fund,Misc Supplies & Services Costs,01-Apr-22,2223/01,LGE,N,
10047486,DG ACCESSIBLE DESIGNS,"3,095.46",Mand Disabled Facilities Grant,Grants,11-Apr-22,2223/01,SME,N,
10047223,APTL ENTERPRISES LTD,"4,648.00",PV Panels,Contracted Services,31-Mar-22,2223/01,SME,Y,44%
10047224,APTL ENTERPRISES LTD,"3,652.00",PV Panels,Contracted Services,31-Mar-22,2223/01,SME,Y,44%
10047296,APTL ENTERPRISES LTD,"6,700.00",PV Panels,Repairs,31-Mar-22,2223/01,SME,N,
10047583,APTL ENTERPRISES LTD,"8,424.00",PV Panels,Contracted Services,20-Apr-22,2223/01,SME,N,
10047342,ANGLIA COMMERCIAL FLOORING LTD,346.71,Building Services,Repairs,23-Mar-22,2223/01,SME,N,
10047343,ANGLIA COMMERCIAL FLOORING LTD,323,Building Services,Repairs,06-Apr-22,2223/01,SME,N,
10047344,ANGLIA COMMERCIAL FLOORING LTD,472.26,Building Services,Repairs,06-Apr-22,2223/01,SME,N,
10047387,ANGLIA COMMERCIAL FLOORING LTD,648.48,Building Services,Repairs,07-Apr-22,2223/01,SME,N,
10047610,ANGLIA COMMERCIAL FLOORING LTD,632.58,Building Services,Repairs,20-Apr-22,2223/01,SME,N,
10047611,ANGLIA COMMERCIAL FLOORING LTD,430.18,Building Services,Repairs,20-Apr-22,2223/01,SME,N,
10047612,ANGLIA COMMERCIAL FLOORING LTD,321.03,Building Services,Repairs,20-Apr-22,2223/01,SME,N,
10047613,ANGLIA COMMERCIAL FLOORING LTD,384.4,Building Services,Repairs,20-Apr-22,2223/01,SME,N,
10047614,ANGLIA COMMERCIAL FLOORING LTD,432.91,Building Services,Repairs,20-Apr-22,2223/01,SME,N,
20027907,ANGLIAN WATER BUS (NAT) LTD T/A WAVE,126.53,C Parks General,Water Rates - Metered,13-Apr-22,2223/01,LGE,N,
20027907,ANGLIAN WATER BUS (NAT) LTD T/A WAVE,656.18,Chilton Depot,Water Rates - Metered,13-Apr-22,2223/01,LGE,Y,50%
20027907,ANGLIAN WATER BUS (NAT) LTD T/A WAVE,4.06,Friars Meadow Sudb,Water Rates - Metered,13-Apr-22,2223/01,LGE,N,
20027907,ANGLIAN WATER BUS (NAT) LTD T/A WAVE,40.52,General Rechargeable Works,Misc Supplies & Services Costs,13-Apr-22,2223/01,LGE,N,
20027907,ANGLIAN WATER BUS (NAT) LTD T/A WAVE,57.41,HQ Energy,Water Rates - Metered,13-Apr-22,2223/01,LGE,N,
20027907,ANGLIAN WATER BUS (NAT) LTD T/A WAVE,685.78,Public Conveniences,Water Rates - Metered,13-Apr-22,2223/01,LGE,N,
20027907,ANGLIAN WATER BUS (NAT) LTD T/A WAVE,"2,136.46",Sheltered Accommodation,Water Rates - Metered,13-Apr-22,2223/01,LGE,N,
20027907,ANGLIAN WATER BUS (NAT) LTD T/A WAVE,113.4,Temporary Accommodation,Water Rates - Metered,13-Apr-22,2223/01,LGE,N,
20027907,ANGLIAN WATER BUS (NAT) LTD T/A WAVE,126,Tenancy Services,Water Rates - Metered,13-Apr-22,2223/01,LGE,N,
10047242,STUDLEY CAPITAL LIMITED,"3,600.00","BRRP-Hamilton,Boreham&BelleVue",Prof & Consultancy Fees,01-Apr-22,2223/01,ST,N,
10047348,GREENACRE RECRUITMENT LTD,"2,504.16",Building Services,Agency Staff,06-Apr-22,2223/01,SME,Y,50%
10047466,CROSS MEDIA PRINT& DIGITAL SOLUTIONS LTD,606.46,Building Services,Commercial Printing,11-Apr-22,2223/01,SME,Y,50%
10046622,BABERGH GROWTH LTD,"2,500.00","BRRP-Hamilton,Boreham&BelleVue",Prof & Consultancy Fees,04-Mar-22,2223/01,SME,N,
10047257,TIAA LTD,"4,275.50",Internal Audit,Contracted Services,01-Apr-22,2223/01,SME,Y,50%
10047748,PINSENT MASONS LLP,744,Belle Vue Refurb/Rplcmt,Prof & Consultancy Fees,25-Apr-22,2223/01,LGE,N,
10047317,REEFER PROPERTIES LTD,695,Guaranteed Rent Scheme,Rent Payable,01-Apr-22,2223/01,SME,N,
10047548,REEFER PROPERTIES LTD,695,Guaranteed Rent Scheme,Rent Payable,19-Apr-22,2223/01,SME,N,
10047553,HADLEIGH FOODBANK,"3,431.27",Holiday Activity Funding,"Equipment, Tools & Materials",14-Apr-22,2223/01,SME,N,
10047526,HOMETRACK DATA SYSTEMS LTD,"2,250.00",Strategic Housing,Prof & Consultancy Fees,31-Mar-22,2223/01,SME,Y,50%
10047646,PRIVATE LANDLORD,490,Guaranteed Rent Scheme,Rent Payable,25-Apr-22,2223/01,SME,N,
10047644,PRIVATE LANDLORD,675,Guaranteed Rent Scheme,Rent Payable,25-Apr-22,2223/01,ST,N,
20027910,PRIVATE LANDLORD,"1,425.00",Guaranteed Rent Scheme,Rent Payable,14-Apr-22,2223/01,ST,N,
10047543,PRIVATE LANDLORD,650,Guaranteed Rent Scheme,Rent Payable,19-Apr-22,2223/01,SME,N,
10047580,NOVUS PROPERTY SOLUTIONS LTD,620,Sheltered Units-Gen.Imp,Improvements,06-Apr-22,2223/01,LGE,N,
10047545,PRIVATE LANDLORD,"1,198.00",Guaranteed Rent Scheme,Rent Payable,19-Apr-22,2223/01,ST,N,
10047293,PLUG-N-GO-LIMITED,412.47,Climate Change and Sustainabil,Misc Supplies & Services Costs,01-Apr-22,2223/01,SME,N,
10047465,GOULD ADAPTIONS LTD,"20,107.33",Mand Disabled Facilities Grant,Grants,11-Apr-22,2223/01,SME,N,
10047376,CAPITA BUSINESS SERVICES LTD (PAY360),"1,058.29",Bank Chgs,Bank Charges,07-Apr-22,2223/01,LGE,N,
10047515,CAPITA BUSINESS SERVICES LTD (PAY360),"7,043.62",Bank Chgs,Bank Charges,13-Apr-22,2223/01,LGE,N,
10047650,SEQUENCE UK LTD (WILLIAM H BROWN),700,Guaranteed Rent Scheme,Rent Payable,25-Apr-22,2223/01,LGE,N,
10047547,PRIVATE LANDLORD,550,Guaranteed Rent Scheme,Rent Payable,19-Apr-22,2223/01,ST,N,
10047656,HANDICARE AGE UK BATHING,"5,910.00",Mand Disabled Facilities Grant,Grants,25-Apr-22,2223/01,SME,N,
10047653,PRIVATE LANDLORD,700,Guaranteed Rent Scheme,Rent Payable,25-Apr-22,2223/01,ST,N,
10047304,CENTREWIRE LTD,423.02,Open Spaces,"Equipment, Tools & Materials",22-Mar-22,2223/01,SME,N,
10047304,CENTREWIRE LTD,173.32,Open Spaces,"Equipment, Tools & Materials",22-Mar-22,2223/01,SME,N,
10047304,CENTREWIRE LTD,228.16,Open Spaces,"Equipment, Tools & Materials",22-Mar-22,2223/01,SME,N,
10047304,CENTREWIRE LTD,117.5,Open Spaces,"Equipment, Tools & Materials",22-Mar-22,2223/01,SME,N,
10047741,PRIVATE LANDLORD,490,Guaranteed Rent Scheme,Rent Payable,28-Apr-22,2223/01,SME,N,
20027919,PRIVATE LANDLORD,550,Homeless Prevention Fund,Misc Supplies & Services Costs,26-Apr-22,2223/01,ST,N,
10047491,PRIVATE LANDLORD,650,Guaranteed Rent Scheme,Rent Payable,12-Apr-22,2223/01,ST,N,
10047340,COUNTRYSTYLE RECYCLING LTD,"4,647.92",Bring Sites,Contracted Services,31-Mar-22,2223/01,SME,N,
10047616,ANDERSON DESIGN & BUILD LIMITED,"75,745.64",Waldingfield Rd S106 Andersons,Prof & Consultancy Fees,19-Apr-22,2223/01,SME,N,
20027909,PRIVATE LANDLORD,750,Guaranteed Rent Scheme,Misc Supplies & Services Costs,14-Apr-22,2223/01,ST,N,
20027909,PRIVATE LANDLORD,473.42,Guaranteed Rent Scheme,Rent Payable,14-Apr-22,2223/01,ST,N,
10047457,PRIVATE LANDLORD,800,Guaranteed Rent Scheme,Rent Payable,11-Apr-22,2223/01,SME,N,
10047260,ARAN INSULATION LTD,"391,711.22",Insulation Imps,Major Contracts,01-Apr-22,2223/01,SME,N,
10047383,ARAN INSULATION LTD,"2,848.37",Building Services,Repairs,31-Mar-22,2223/01,SME,N,
10047600,ARAN INSULATION LTD,"1,400.00",Insulation Imps,Improvements,21-Apr-22,2223/01,SME,N,
10047603,ARAN INSULATION LTD,616.55,Insulation Imps,Improvements,21-Apr-22,2223/01,SME,N,
30128798,ARAN INSULATION LTD,988,Insulation Imps,Improvements,09-Mar-22,2223/01,SME,N,
10047321,PEL UK RENTALS LTD,"10,635.00",Vehicle and Plant Renewals,"Equipment, Tools & Materials",05-Apr-22,2223/01,SME,N,
10047542,PRIVATE LANDLORD,550,Guaranteed Rent Scheme,Rent Payable,19-Apr-22,2223/01,ST,N,
10047743,PRIVATE LANDLORD,500,Guaranteed Rent Scheme,Rent Payable,28-Apr-22,2223/01,ST,N,
10047740,PRIVATE LANDLORD,"1,200.00",Guaranteed Rent Scheme,Rent Payable,28-Apr-22,2223/01,SME,N,
10047669,PRIVATE LANDLORD,550,Guaranteed Rent Scheme,Rent Payable,26-Apr-22,2223/01,ST,N,
10047275,IPSERV LTD,322.33,Central Printing,Commercial Printing,01-Apr-22,2223/01,SME,Y,18%
10047275,IPSERV LTD,660.3,Communications,Commercial Printing,01-Apr-22,2223/01,SME,N,
10047275,IPSERV LTD,540.93,Communications,Commercial Printing,01-Apr-22,2223/01,SME,N,
10047238,AGENTS MUTUAL LTD,645,"Angel Court, Hadleigh",Prof & Consultancy Fees,28-Feb-22,2223/01,SME,N,
10047497,AGENTS MUTUAL LTD,339.36,"Angel Court, Hadleigh",Prof & Consultancy Fees,31-Mar-22,2223/01,SME,N,
10047527,AGENTS MUTUAL LTD,645,"Angel Court, Hadleigh",Prof & Consultancy Fees,31-Aug-21,2223/01,SME,N,
10047529,AGENTS MUTUAL LTD,645,"Angel Court, Hadleigh",Prof & Consultancy Fees,31-Jul-21,2223/01,SME,N,
10047451,DAVID BURR LETTINGS,700,Guaranteed Rent Scheme,Rent Payable,11-Apr-22,2223/01,SME,N,
10047420,FOURWAYS VEHICLE SOLUTIONS LTD,511,Building Services,Lease Cars - Payment,21-Mar-22,2223/01,SME,Y,50%
10047622,FOURWAYS VEHICLE SOLUTIONS LTD,511,Building Services,Lease Cars - Payment,18-Apr-22,2223/01,SME,Y,50%
10047301,START AFRESH CLEANING LTD,515.67,Street & Major Road Cleansing,General Cleaning,31-Mar-22,2223/01,SME,N,
10047264,REGENCY GUARDING & EVENTS LTD,620,Open Spaces,Contracted Services,01-Apr-22,2223/01,SME,N,
10047490,PRIVATE LANDLORD,715,Guaranteed Rent Scheme,Rent Payable,12-Apr-22,2223/01,SME,N,
10047277,BADENOCH & CLARK LTD T/A ADECCO,"2,440.00",Commissioning & Procurement,Agency Staff,28-Mar-22,2223/01,SME,Y,50%
10047561,BADENOCH & CLARK LTD T/A ADECCO,"1,470.50",Commissioning & Procurement,Agency Staff,06-Apr-22,2223/01,SME,Y,50%
20027918,SHJ HOMES LTD,550,Guaranteed Rent Scheme,Rent Payable,22-Apr-22,2223/01,SME,N,
20027918,SHJ HOMES LTD,750,Guaranteed Rent Scheme,Misc Supplies & Services Costs,22-Apr-22,2223/01,SME,N,
10047318,PRIVATE LANDLORD,500,Guaranteed Rent Scheme,Rent Payable,01-Apr-22,2223/01,ST,N,
10047549,PRIVATE LANDLORD,500,Guaranteed Rent Scheme,Rent Payable,19-Apr-22,2223/01,ST,N,
10047313,METRIC GROUP LTD,"1,210.00",C Parks General,"Equipment, Tools & Materials",14-Mar-22,2223/01,SME,N,
10047419,FOOTBALL FUN FACTORY (FRANCHISING) LTD,"2,520.00",Holiday Activity Funding,"Equipment, Tools & Materials",05-Apr-22,2223/01,SME,N,
10047747,NAGELS UK LTD,"1,360.00",C Parks General,Stationery,21-Apr-22,2223/01,SME,N,
10047460,PRIVATE LANDLORD,675,Guaranteed Rent Scheme,Rent Payable,11-Apr-22,2223/01,ST,N,
10047459,PRIVATE LANDLORD,500,Guaranteed Rent Scheme,Rent Payable,11-Apr-22,2223/01,ST,N,
10047461,PRIVATE LANDLORD,650,Guaranteed Rent Scheme,Rent Payable,11-Apr-22,2223/01,ST,N,
10047546,PRIVATE LANDLORD,650,Guaranteed Rent Scheme,Rent Payable,19-Apr-22,2223/01,ST,N,
10046857,BELL CONTAINER TRADING LTD,"3,092.00",Public Realm TransitionProject,"Equipment, Tools & Materials",15-Mar-22,2223/01,SME,N,
10047322,MINI WASTE LTD,385,Open Spaces,Waste Disposal,31-Mar-22,2223/01,SME,N,
10047276,WILLIAMS HOMES & DEVELOPMENTS LTD,"6,975.00",New Bld/acquisition,Purchase of Land & Buildings,04-Apr-22,2223/01,SME,N,
10047551,PRIVATE LANDLORD,695,Guaranteed Rent Scheme,Rent Payable,19-Apr-22,2223/01,ST,N,
10047736,PRIVATE LANDLORD,469.98,Homeless Prevention Fund,Misc Supplies & Services Costs,27-Apr-22,2223/01,ST,N,
10047462,AIRTEC PLUMBING & HEATING,"5,000.00",Renovation/Home Repair Grants,Grants,11-Apr-22,2223/01,SME,N,
10047524,THE SECRET GARDEN,"1,698.77",Business Innovation Grants,Grants,13-Apr-22,2223/01,SME,N,
10047746,THE SECRET GARDEN,266.23,Business Innovation Grants,Grants,28-Apr-22,2223/01,SME,N,
20027863,AINGER HOLBROWS LTD,-50,Taxi & Private Hire Licensing,Contracted Services,05-Apr-22,2223/01,SME,N,
1011,FORE-MOST GARAGE DOORS LTD,"-2,754.66",Building Services,Repairs,14-Apr-22,2223/01,SME,N,
10047222,ARCHANT COMMUNITY MEDIA LTD,-260.02,RHSSF,Advertising&mkting (non-staff),31-Mar-22,2223/01,LGE,N,
10047499,BUPA,"-1,399.54",Organisational Devt,Contracted Services,08-Apr-22,2223/01,LGE,Y,50%
10047371,VERTAS GROUP LTD,-10.47,Endeavour House - HQ,Plant & Vehicle - Other costs,06-Apr-22,2223/01,SME,Y,50%
1009,WEST SUFFOLK COUNCIL,"-2,332.00",Community Safety-CCTV,"Equipment, Tools & Materials",13-Apr-22,2223/01,LGE,N,
10048270,AARON SERVICES LTD,"9,135.28",Planned Maint - Heating,Property Servicing,10-May-22,2223/02,SME,N,
10048089,ADVANCED CONTROLS & MANAGEMENT SYSTEMS L,"18,561.35",Pld Maint/Enhncmts-Kingfisher,Improvements,11-May-22,2223/02,SME,N,
10047829,AE WHITE SURFACING,"1,754.00",C Parks General,Repairs,05-May-22,2223/02,SME,N,
10047830,AE WHITE SURFACING,"3,603.00",Estate Imps/parking areas,Improvements,03-May-22,2223/02,SME,N,
10047858,ANGLIAN WATER,433.84,Water Sampling,Sampling & Analysis,28-Apr-22,2223/02,LGE,N,
10047859,ANGLIAN WATER,381.57,Water Sampling,Sampling & Analysis,17-Mar-22,2223/02,LGE,N,
10048127,ANGLIAN WATER,"1,438.00",Other Temp Accommodation,Water Charges,20-Feb-22,2223/02,LGE,N,
10048021,BINDER LTD,498,Sewage Treatment Works,Contracted Services,28-Apr-22,2223/02,SME,N,
10048025,BINDER LTD,"1,087.09",Sewage Treatment Works,Contracted Services,27-Apr-22,2223/02,SME,N,
10048317,BINDER LTD,314.5,Sewage Treatment Works,Contracted Services,17-May-22,2223/02,SME,N,
10047728,BLUE FLAME (COLCHESTER) LTD,"1,450.00",Hadleigh TDP,Operating Lease Payments,14-Apr-22,2223/02,SME,Y,50%
10047729,BLUE FLAME (COLCHESTER) LTD,"2,175.00",Hadleigh TDP,Operating Lease Payments,29-Nov-21,2223/02,SME,Y,50%
10048006,BOWER FULLER,344.39,Sheltered Accommodation,Repairs,29-Apr-22,2223/02,SME,N,
10048008,BOWER FULLER,"6,788.80",Borehamgate Shopping Centre,Improvements,29-Apr-22,2223/02,SME,N,
10048011,BOWER FULLER,"1,769.29",Tenancy Services,Fire Prevention,29-Apr-22,2223/02,SME,N,
10048015,BOWER FULLER,367.56,Tenancy Services,Fire Prevention,29-Apr-22,2223/02,SME,N,
10048018,BOWER FULLER,445.39,Tenancy Services,Fire Prevention,29-Apr-22,2223/02,SME,N,
10048024,BOWER FULLER,"1,176.59",Assets & Development,Repairs,29-Apr-22,2223/02,SME,N,
10048027,BOWER FULLER,"1,488.96",Sheltered Accommodation,Electricity,29-Apr-22,2223/02,SME,N,
10048028,BOWER FULLER,"7,553.96",Sheltered Accommodation,Improvements,04-May-22,2223/02,SME,N,
10048300,CENTRAL TYRE LTD,266,Open Spaces,Plant & Vehicle - Other costs,24-May-22,2223/02,SME,N,
10047966,CHEQUERS HOTEL LTD,325,Homelessness Private Sector,B&B Costs,02-May-22,2223/02,SME,N,
10047968,CHEQUERS HOTEL LTD,780,Homelessness Private Sector,B&B Costs,02-May-22,2223/02,SME,N,
10047969,CHEQUERS HOTEL LTD,"1,625.00",Homelessness Private Sector,B&B Costs,02-May-22,2223/02,SME,N,
10047970,CHEQUERS HOTEL LTD,"1,072.50",Homelessness Private Sector,B&B Costs,02-May-22,2223/02,SME,N,
10047971,CHEQUERS HOTEL LTD,"1,137.50",Homelessness Private Sector,B&B Costs,02-May-22,2223/02,SME,N,
10047973,CHEQUERS HOTEL LTD,325,Homelessness Private Sector,B&B Costs,02-May-22,2223/02,SME,N,
10047975,CHEQUERS HOTEL LTD,"1,137.50",Homelessness Private Sector,B&B Costs,02-May-22,2223/02,SME,N,
10047976,CHEQUERS HOTEL LTD,260,Homelessness Private Sector,B&B Costs,02-May-22,2223/02,SME,N,
10047906,CHIPSIDE LTD,361.42,C Parks General,Contracted Services,30-Apr-22,2223/02,SME,N,
10047764,D W ADAMS LTD,"5,948.00",Council House Adaptions,Improvements,28-Apr-22,2223/02,SME,N,
10047881,D W ADAMS LTD,"6,387.00",Council House Adaptions,Improvements,03-May-22,2223/02,SME,N,
10047986,D W ADAMS LTD,"5,055.00",Council House Adaptions,Improvements,09-May-22,2223/02,SME,N,
10047988,D W ADAMS LTD,"3,120.00",Kitchens/Bathrooms,BMBS Repairs Work,09-May-22,2223/02,SME,N,
10048128,D W ADAMS LTD,"5,848.00",Council House Adaptions,Improvements,13-May-22,2223/02,SME,N,
10048130,D W ADAMS LTD,303,Disabled Facilities (Revenue),Repairs,13-May-22,2223/02,SME,N,
10048261,D W ADAMS LTD,405,Council House Adaptions,Improvements,20-May-22,2223/02,SME,N,
10048262,D W ADAMS LTD,263,Building Services,Repairs,20-May-22,2223/02,SME,N,
10048265,D W ADAMS LTD,285,Building Services,Repairs,20-May-22,2223/02,SME,N,
10048437,D W ADAMS LTD,"1,947.00",Kitchens/Bathrooms,Improvements,30-Mar-22,2223/02,SME,N,
10048180,DMA HEALTH AND SAFETY LTD,316,Kitchens/Bathrooms,Prof & Consultancy Fees,16-May-22,2223/02,SME,N,
10048181,DMA HEALTH AND SAFETY LTD,260,"Fences, Gates and Walls",Major Contracts,16-May-22,2223/02,SME,N,
10048046,CIVICA ELECTION SERVICES,"2,439.24",Electoral Registration,Commercial Printing,13-Apr-22,2223/02,LGE,N,
10048156,CIVICA ELECTION SERVICES,"1,361.03",Electoral Registration,Returning Officer Fees,12-Apr-22,2223/02,LGE,N,
10047964,ENER-G SWITCH2 LTD,451.78,Temporary Accommodation,Repairs,06-May-22,2223/02,SME,N,
10047763,ENGLISH SECURITY,55.25,Building Services,Repairs,19-Apr-22,2223/02,SME,N,
10047763,ENGLISH SECURITY,127.07,HQ Repairs,Fire Prevention,19-Apr-22,2223/02,SME,N,
10047763,ENGLISH SECURITY,167.56,Sheltered Accommodation,Fire Prevention,19-Apr-22,2223/02,SME,N,
10047763,ENGLISH SECURITY,165.77,Sheltered Accommodation,Emergency Lighting,19-Apr-22,2223/02,SME,N,
10047763,ENGLISH SECURITY,128.05,Temporary Accommodation,Fire Prevention,19-Apr-22,2223/02,SME,N,
10047763,ENGLISH SECURITY,487.46,Tenancy Services,Emergency Lighting,19-Apr-22,2223/02,SME,N,
10048377,ENGLISH SECURITY,497.5,Homelessness Private Sector,Misc Premises Costs,17-May-22,2223/02,SME,N,
10047658,ENVIROVENT LTD,460,Dampness & Condensation,Repairs,14-Apr-22,2223/02,SME,N,
10047951,ENVIROVENT LTD,460,Dampness & Condensation,Repairs,30-Apr-22,2223/02,SME,N,
10047952,ENVIROVENT LTD,460,Building Services,Repairs,30-Apr-22,2223/02,SME,N,
10047953,ENVIROVENT LTD,460,Dampness & Condensation,Repairs,30-Apr-22,2223/02,SME,N,
10048071,ENVIROVENT LTD,460,Building Services,Repairs,06-May-22,2223/02,SME,N,
10048229,FELGAINS CARE CENTRE,"5,016.00",Mand Disabled Facilities Grant,Grants,19-May-22,2223/02,SME,N,
10047648,FELLBRIDGE BUILDING SERVICES,"9,256.75",Building Services,Repairs,25-Apr-22,2223/02,SME,N,
10048233,FELLBRIDGE BUILDING SERVICES,"16,907.49",Building Services,Repairs,19-May-22,2223/02,SME,N,
10047766,FORE-MOST GARAGE DOORS LTD,"2,216.39",Building Services,Repairs,30-Apr-22,2223/02,SME,N,
10047982,GB ADAPTIONS LTD,"7,215.00",Mand Disabled Facilities Grant,Grants,09-May-22,2223/02,SME,N,
10047985,GB ADAPTIONS LTD,"5,319.00",Mand Disabled Facilities Grant,Grants,09-May-22,2223/02,SME,N,
10048355,GO START COMMUNITY TRANSPORT,665,Grants & Contrbns,Grants,25-May-22,2223/02,SME,N,
10048408,GO START COMMUNITY TRANSPORT,"2,024.72",CIL Funded REFCUS,Grants,27-May-22,2223/02,SME,N,
10047703,HAYES DIGGINS BUILDERS,342,Kingfisher Leisure Centre,Repairs,25-Apr-22,2223/02,SME,N,
10048145,HEALTH SHIELD FRIENDLY SOCIETY LTD,688.8,Organisational Devt,Contracted Services,01-Apr-22,2223/02,SME,Y,50%
10047780,HUDSON MEDIA PARTNERSHIP LTD,"2,625.00",Guaranteed Rent Scheme,"Equipment, Tools & Materials",28-Apr-22,2223/02,SME,Y,50%
10048092,HUDSON MEDIA PARTNERSHIP LTD,295,Open Spaces,"Equipment, Tools & Materials",12-May-22,2223/02,SME,Y,50%
10047869,KEN GRIME & SON LTD,"1,233.48",Building Services,Repairs,29-Apr-22,2223/02,SME,N,
10047777,KEYWAYS THE LOCKSMITHS LTD,269,Tenancy Services,Repairs,29-Apr-22,2223/02,SME,N,
10047890,M & H CIVIL ENGINEERING LTD,586,Building Services,Repairs,03-May-22,2223/02,SME,N,
10047891,M & H CIVIL ENGINEERING LTD,"1,574.10",Building Services,Repairs,03-May-22,2223/02,SME,N,
10047892,M & H CIVIL ENGINEERING LTD,"1,268.30",Building Services,Repairs,03-May-22,2223/02,SME,N,
10047996,M & H CIVIL ENGINEERING LTD,997.7,Building Services,Repairs,09-May-22,2223/02,SME,N,
10048069,M & H CIVIL ENGINEERING LTD,"1,397.00",Building Services,Repairs,11-May-22,2223/02,SME,N,
10048194,M & H CIVIL ENGINEERING LTD,"1,992.60",Building Services,Repairs,17-May-22,2223/02,SME,N,
10048113,MB TREES (EAST ANGLIA) LTD,785,Public Tree Programme,Tree felling/maintenance,12-May-22,2223/02,SME,N,
10047916,MERCURY BUILDING SERVICES LTD,359,Hadleigh Pool,Repairs,04-May-22,2223/02,SME,N,
10047916,MERCURY BUILDING SERVICES LTD,"8,124.00",Pld Maint/Enhncmts-Kingfisher,Improvements,04-May-22,2223/02,SME,N,
10047916,MERCURY BUILDING SERVICES LTD,"1,571.00",Kingfisher Leisure Centre,Repairs,04-May-22,2223/02,SME,N,
10048202,MID SUFFOLK FENCING LTD,"1,197.00",Chilton Depot,Repairs,17-May-22,2223/02,SME,Y,50%
10048239,MONTHIND CLEAN LTD,665.83,Jnt Waste Contract,General Cleaning,15-May-22,2223/02,LGE,Y,50%
10047856,NEW LOCAL,"6,900.00",Management Team,Subscriptions,06-Apr-22,2223/02,LGE,Y,50%
10048042,NORFOLK COUNTY COUNCIL,"4,734.72",Strategic Housing,Subscriptions,28-Apr-22,2223/02,LGE,N,
10047816,ORWELL HOUSING ASSOCIATION LTD,545.52,Sheltered Accommodation,Contracted Services,28-May-22,2223/02,LGE,N,
10048053,ORWELL HOUSING ASSOCIATION LTD,545.52,Sheltered Accommodation,Contracted Services,31-Dec-21,2223/02,LGE,N,
10048054,ORWELL HOUSING ASSOCIATION LTD,545.52,Sheltered Accommodation,Contracted Services,31-Dec-21,2223/02,LGE,N,
10048055,ORWELL HOUSING ASSOCIATION LTD,545.52,Sheltered Accommodation,Contracted Services,01-Mar-22,2223/02,LGE,N,
10048203,PITKIN & RUDDOCK LTD,"1,250.00",Hadleigh Pool,Repairs,17-May-22,2223/02,SME,N,
10047282,PLASUFIX LTD,"3,495.00",Major Imps,Improvements,31-Mar-22,2223/02,SME,N,
10047882,PLASUFIX LTD,"7,720.00",Roofing,Improvements,30-Apr-22,2223/02,SME,N,
10048049,PRO-FLAT SPECIALIST SERVICES LTD,"1,440.00",Window & Door Rplcmts,Improvements,29-Apr-22,2223/02,SME,N,
10047722,REID PLUMBING & HEATING CONTRACTORS LTD,"22,981.57",Central Heating,Major Contracts,13-Apr-22,2223/02,SME,N,
10047723,REID PLUMBING & HEATING CONTRACTORS LTD,"9,727.23",Central Heating,Major Contracts,19-Apr-22,2223/02,SME,N,
10047724,REID PLUMBING & HEATING CONTRACTORS LTD,"16,433.60",Central Heating,Major Contracts,19-Apr-22,2223/02,SME,N,
10047725,REID PLUMBING & HEATING CONTRACTORS LTD,"13,646.07",Central Heating,Major Contracts,20-Apr-22,2223/02,SME,N,
10047726,REID PLUMBING & HEATING CONTRACTORS LTD,"9,000.67",Central Heating,Major Contracts,25-Apr-22,2223/02,SME,N,
10047727,REID PLUMBING & HEATING CONTRACTORS LTD,"18,326.49",Central Heating,Major Contracts,26-Apr-22,2223/02,SME,N,
10048120,REID PLUMBING & HEATING CONTRACTORS LTD,"26,683.14",Central Heating,Major Contracts,13-May-22,2223/02,SME,N,
10048186,REID PLUMBING & HEATING CONTRACTORS LTD,"37,809.83",Central Heating,Major Contracts,16-May-22,2223/02,SME,N,
10048210,REID PLUMBING & HEATING CONTRACTORS LTD,"23,688.72",Central Heating,Major Contracts,18-May-22,2223/02,SME,N,
10048324,REID PLUMBING & HEATING CONTRACTORS LTD,"4,124.87",Central Heating,Major Contracts,25-May-22,2223/02,SME,N,
10047979,RICOH UK LTD,"1,042.90",ICT,Photocopying,06-May-22,2223/02,LGE,Y,50%
10048298,RICOH UK LTD,665.97,ICT,Photocopying,06-May-22,2223/02,LGE,Y,50%
10047790,SEAGER HOME SOLUTIONS,"19,776.72",Mand Disabled Facilities Grant,Grants,29-Apr-22,2223/02,SME,N,
10047822,SEAGER HOME SOLUTIONS,"16,553.65",Building Services,Repairs,25-Apr-22,2223/02,SME,N,
10048048,SEAGER HOME SOLUTIONS,"11,038.87",Building Services,Repairs,16-May-22,2223/02,SME,N,
10048200,SEAGER HOME SOLUTIONS,"5,307.50",Building Services,Repairs,17-May-22,2223/02,SME,N,
10048085,SPALDINGS LTD,428.5,Open Spaces,"Equipment, Tools & Materials",11-May-22,2223/02,SME,N,
10048235,STEVEN R.POTKINS LTD,"5,754.42",Mand Disabled Facilities Grant,Grants,19-May-22,2223/02,SME,N,
10048413,SUDBURY OFFICE SUPPLIES,738,ICT,Photocopying,24-May-22,2223/02,SME,Y,50%
10048279,SUFFOLK TREE SERVICES LTD,"1,250.00",Tenancy Services,Tree felling/maintenance,20-May-22,2223/02,SME,N,
10047639,SUREFIX,900,Major Imps,Improvements,18-Apr-22,2223/02,SME,N,
10047710,SUREFIX,"1,476.72",Building Services,Repairs,19-Apr-22,2223/02,SME,N,
10047831,SUREFIX,293.81,Building Services,Repairs,20-Apr-22,2223/02,SME,N,
10047836,SUREFIX,"1,600.00",Major Imps,Repairs,21-Apr-22,2223/02,SME,N,
10047837,SUREFIX,900,Major Imps,Improvements,28-Apr-22,2223/02,SME,N,
10047838,SUREFIX,"1,786.26",Major Imps,Repairs,27-Apr-22,2223/02,SME,N,
10047839,SUREFIX,"1,005.48",Major Imps,Improvements,26-Apr-22,2223/02,SME,N,
10047840,SUREFIX,850,Major Imps,Improvements,21-Apr-22,2223/02,SME,N,
10047841,SUREFIX,800,Major Imps,Improvements,25-Apr-22,2223/02,SME,N,
10047842,SUREFIX,"1,810.03",Major Imps,Repairs,29-Apr-22,2223/02,SME,N,
10047846,SUREFIX,800,Major Imps,Repairs,01-Apr-22,2223/02,SME,N,
10047850,SUREFIX,875,Major Imps,Improvements,28-Mar-22,2223/02,SME,N,
10047855,SUREFIX,900,Major Imps,Improvements,25-Apr-22,2223/02,SME,N,
10047871,TANKCHANGE LTD,"2,345.00",Central Heating,Improvements,24-Mar-22,2223/02,SME,N,
10047773,THE PLAY INSPECTION COMPANY LTD,"2,932.00",Open Spaces,Subscriptions,29-Apr-22,2223/02,SME,Y,50%
10048231,THOMPSON COOPER LTD,994.5,Street & Major Road Cleansing,"Equipment, Tools & Materials",17-Mar-22,2223/02,SME,N,
10048232,THOMPSON COOPER LTD,912.5,RHSSF,"Equipment, Tools & Materials",19-Jul-21,2223/02,SME,N,
10047711,WINDIMAN LTD,"2,354.42",Major Imps,Improvements,26-Apr-22,2223/02,SME,N,
10048005,WINDIMAN LTD,"1,135.00",Window & Door Rplcmts,Improvements,26-Apr-22,2223/02,SME,N,
10048255,WINDIMAN LTD,312.73,Building Services,Repairs,19-May-22,2223/02,SME,N,
10047683,WORKWEAR (EAST ANGLIA) LTD,63.75,Street & Major Road Cleansing,Protective clothing,07-Apr-22,2223/02,SME,N,
10047683,WORKWEAR (EAST ANGLIA) LTD,314.93,Street & Major Road Cleansing,Protective clothing,07-Apr-22,2223/02,SME,N,
10047981,WORKWEAR (EAST ANGLIA) LTD,298.24,Open Spaces,Protective clothing,25-Apr-22,2223/02,SME,N,
10048308,WORKWEAR (EAST ANGLIA) LTD,279.51,Open Spaces,Protective clothing,05-May-22,2223/02,SME,N,
10048308,WORKWEAR (EAST ANGLIA) LTD,279.51,Street & Major Road Cleansing,Protective clothing,05-May-22,2223/02,SME,N,
10048245,ARCHANT COMMUNITY MEDIA LTD,531.5,Devt Management -Applications,Advertising&mkting (non-staff),14-May-22,2223/02,LGE,N,
10048309,ARCHANT COMMUNITY MEDIA LTD,689.09,Devt Management -Applications,Advertising&mkting (non-staff),21-May-22,2223/02,LGE,N,
10048440,ARCHANT COMMUNITY MEDIA LTD,377,Devt Management -Applications,Advertising&mkting (non-staff),30-Apr-22,2223/02,LGE,N,
10048254,MITIE PROPERTY SERVICES (UK) LTD,"19,329.70",Planned Maint - Ext Painting,External Painting,19-May-22,2223/02,SME,N,
10047860,BUILDBASE,296.1,Assets & Development,Repairs,30-Apr-22,2223/02,LGE,N,
10048327,RURAL COFFEE CARAVAN INFORMATION PROJECT,"4,000.00",Grants & Contrbns,Grants,25-May-22,2223/02,SME,N,
10048242,ERNST & YOUNG LLP,"10,647.00",Ext Audit,Audit Fees,11-May-22,2223/02,LGE,N,
20027933,GPC BARCLAYS,"8,273.08",Current Assets,Barclaycard Control,16-May-22,2223/02,LGE,Y,24%
20027941,COMPUTERSHARE ,636,Current Assets,ChildCare Vouchers-Control,26-May-22,2223/02,LGE,N,
10048350,ASSOCIATION FOR SUFFOLK MUSEUMS,"1,000.00",Grants & Contrbns,Grants,25-May-22,2223/02,SME,N,
10047677,BRANTHAM MANAGEMENT CIC,"2,024.95",Suffolk Community Restart Fund,Grants,26-Apr-22,2223/02,SME,N,
10047680,COPDOCK & WASHBROOK PARISH COUNCIL,"1,000.00",Suffolk Community Restart Fund,Grants,26-Apr-22,2223/02,SME,N,
10048326,EASTERN ANGLES THEATRE CO LTD,400,Grants & Contrbns,Grants,25-May-22,2223/02,SME,N,
20027923,HINTLESHAM & CHATTISHAM COMMUNITY COUNCI,302.12,Bring Sites,Contributions & Donations,06-May-22,2223/02,SME,N,
10048272,KERSEY PARISH COUNCIL,500,Grants & Contrbns,Grants,20-May-22,2223/02,SME,N,
10047798,LAVENHAM PARISH COUNCIL,"4,475.00",Public Conveniences,Repairs,04-May-22,2223/02,SME,N,
10047765,LAYHAM PARISH COUNCIL,382.08,Grants & Contrbns,Contributions & Donations,28-Apr-22,2223/02,SME,N,
10047813,LEAVENHEATH PARISH COUNCIL,"1,000.00",Grants & Contrbns,Grants,29-Apr-22,2223/02,SME,N,
10047678,LEAVENHEATH VILLAGE HALL,"1,623.83",Suffolk Community Restart Fund,Grants,26-Apr-22,2223/02,SME,N,
10048338,LIGHTHOUSE WOMENS AID LTD,"1,250.00",Grants & Contrbns,Grants,25-May-22,2223/02,SME,N,
10047796,SUDBURY MARKET TOWN PARTNERSHIP,"1,000.00",Grants & Contrbns,Grants,29-Apr-22,2223/02,SME,N,
10048328,SUFFOLK ACCIDENT RESCUE SERVICE,500,Grants & Contrbns,Grants,25-May-22,2223/02,SME,N,
10048337,SUFFOLK ARTLINK,"1,500.00",Grants & Contrbns,Grants,25-May-22,2223/02,SME,N,
10047804,SUFFOLK COUNTY COUNCIL,259.55,ICT,Desktop Software,28-Apr-22,2223/02,LGE,Y,50%
10047942,SUFFOLK COUNTY COUNCIL,"7,500.00",Womens Cycle Tour,"Equipment, Tools & Materials",04-May-22,2223/02,LGE,Y,50%
10048126,SUFFOLK COUNTY COUNCIL,350,Governance,Misc Supplies & Services Costs,30-Mar-22,2223/02,LGE,N,
10048132,SUFFOLK COUNTY COUNCIL,285.6,Health & Safety,"Equipment, Tools & Materials",13-May-22,2223/02,LGE,Y,50%
10048168,SUFFOLK COUNTY COUNCIL,"1,090.00",Land Chgs,Contracted Services,13-May-22,2223/02,LGE,N,
10048169,SUFFOLK COUNTY COUNCIL,642.49,ICT,Desktop Software,13-May-22,2223/02,LGE,Y,50%
10048213,SUFFOLK COUNTY COUNCIL,"6,714.30",Jnt Waste Contract,Subscriptions,18-May-22,2223/02,LGE,N,
10048310,SUFFOLK COUNTY COUNCIL,458.33,Mand Disabled Facilities Grant,Grants,20-May-22,2223/02,LGE,Y,50%
10048340,SUFFOLK COUNTY COUNCIL,"7,078.97",Domestic Waste,MRF Disposal,24-May-22,2223/02,LGE,N,
10048340,SUFFOLK COUNTY COUNCIL,"11,743.58",Garden Waste,Garden Waste Disposal,24-May-22,2223/02,LGE,N,
10048484,SUFFOLK COUNTY COUNCIL,"1,554.45",ICT,Desktop Software,27-May-22,2223/02,LGE,Y,50%
10047886,FENN WRIGHT LLP,675,General/Supervision & Mgmt,Prof & Consultancy Fees,27-Apr-22,2223/02,SME,N,
10047824,REED SPECIALIST RECRUITMENT LTD,601.2,Financial Servs,Agency Staff,22-Apr-22,2223/02,LGE,Y,50%
10047978,REED SPECIALIST RECRUITMENT LTD,741.48,Financial Servs,Agency Staff,29-Apr-22,2223/02,LGE,Y,50%
10048277,REED SPECIALIST RECRUITMENT LTD,711.42,Financial Servs,Agency Staff,13-May-22,2223/02,LGE,Y,50%
10048448,TELEFONICA UK LIMITED - O2,334.28,ICT,Telephone Costs,27-May-22,2223/02,LGE,Y,50%
10048070,BT PAYMENT SERVICES,"5,401.77",ICT,Telephone Costs,04-May-22,2223/02,LGE,Y,50%
10048214,EAST OF ENGLAND CO-OPERATIVE SOCIETY LTD,"1,293.00",General Rechargeable Works,Misc Supplies & Services Costs,17-May-22,2223/02,LGE,N,
10048119,CYCLESCHEME LTD,915.83,Current Assets,Cycling Scheme,13-May-22,2223/02,SME,N,
10048292,SUDBURY & DISTRICT CAB,"18,375.00",Grants & Contrbns,Grants,23-May-22,2223/02,SME,N,
10048349,EDENS PROJECT,"7,920.00",Grants & Contrbns,Grants,25-May-22,2223/02,SME,N,
10048345,KERNOS CENTRE,"4,000.00",Grants & Contrbns,Grants,25-May-22,2223/02,SME,N,
10048354,KERNOS CENTRE,"2,360.00",Cost of Democracy,Chairman's Expenses,25-May-22,2223/02,SME,N,
10048288,WHITESPACE WORK SOFTWARE LTD,"24,798.75",ICT,Software Licnse (Line of Bus) ,27-Apr-22,2223/02,SME,Y,50%
10047492,ERNEST DOE & SONS LTD,"1,223.34",Open Spaces,"Equipment, Tools & Materials",25-Mar-22,2223/02,LGE,N,
10048346,THE QUAY THEATRE AT SUDBURY,"11,500.00",Grants & Contrbns,Grants,25-May-22,2223/02,SME,N,
10046952,WHYBROW PROPERTY SOLUTIONS LTD,"6,475.91",Building Services,Repairs,21-Mar-22,2223/02,SME,N,
10047291,WHYBROW PROPERTY SOLUTIONS LTD,"4,929.65",Building Services,Repairs,04-Apr-22,2223/02,SME,N,
10047630,WHYBROW PROPERTY SOLUTIONS LTD,"6,258.36",Building Services,Repairs,22-Apr-22,2223/02,SME,N,
10047631,WHYBROW PROPERTY SOLUTIONS LTD,"3,622.91",Building Services,Repairs,22-Apr-22,2223/02,SME,N,
10047767,WHYBROW PROPERTY SOLUTIONS LTD,"4,930.98",Building Services,Repairs,28-Apr-22,2223/02,SME,N,
10047793,WHYBROW PROPERTY SOLUTIONS LTD,"8,074.64",Kitchens/Bathrooms,Improvements,07-Mar-22,2223/02,SME,N,
10047828,WHYBROW PROPERTY SOLUTIONS LTD,"9,447.40",Kitchens/Bathrooms,Improvements,28-Apr-22,2223/02,SME,N,
10047878,WHYBROW PROPERTY SOLUTIONS LTD,"5,028.00",Building Services,Repairs,28-Apr-22,2223/02,SME,N,
10047919,WHYBROW PROPERTY SOLUTIONS LTD,468,Building Services,Repairs,28-Apr-22,2223/02,SME,N,
10048002,WHYBROW PROPERTY SOLUTIONS LTD,493.61,Kitchens/Bathrooms,Improvements,11-Mar-22,2223/02,SME,N,
10048148,WHYBROW PROPERTY SOLUTIONS LTD,"6,387.99",Building Services,Repairs,13-May-22,2223/02,SME,N,
10048183,WHYBROW PROPERTY SOLUTIONS LTD,"4,699.80",Building Services,Repairs,13-May-22,2223/02,SME,N,
10047717,L A C CLEANING CONTRACTORS LIMITED,648.48,Sheltered Accommodation,General Cleaning,25-Apr-22,2223/02,SME,N,
10047800,L A C CLEANING CONTRACTORS LIMITED,732.45,Wenham Depot TDP,General Cleaning,25-Apr-22,2223/02,SME,Y,50%
10047843,ARMSTRONG YORK ASBESTOS ENVIRONMENTAL,"10,498.11",Asbestos Survey & Reinspection,Prof & Consultancy Fees,31-Mar-22,2223/02,SME,N,
10048215,ARMSTRONG YORK ASBESTOS ENVIRONMENTAL,"5,900.57",Asbestos Survey & Reinspection,Prof & Consultancy Fees,29-Apr-22,2223/02,SME,N,
10047568,CADCORP,"40,242.75",ICT,Software Licnse (Line of Bus) ,19-Apr-22,2223/02,SME,Y,50%
10047994,STOWE VETERINARY GROUP,396.57,Animal Welfare Licensing,Prof & Consultancy Fees,05-May-22,2223/02,SME,N,
10047995,STOWE VETERINARY GROUP,328.57,Animal Welfare Licensing,Prof & Consultancy Fees,05-May-22,2223/02,SME,N,
10048237,COMMUNITY ACTION SUFFOLK,220,Homelessness Private Sector,Training,13-May-22,2223/02,SME,Y,50%
10048237,COMMUNITY ACTION SUFFOLK,113.6,Homelessness Private Sector,Food & Drink,13-May-22,2223/02,SME,Y,50%
10048339,COMMUNITY ACTION SUFFOLK,"5,000.00",Grants & Contrbns,Grants,25-May-22,2223/02,SME,N,
10048240,TIM BUXBAUM CHARTERED ARCHITECT,"1,000.00",Conservation,Prof & Consultancy Fees,03-May-22,2223/02,SME,N,
10047668,ROSSI LONG CONSULTING LTD,"2,751.25","Schoolfield, Glemsford",Prof & Consultancy Fees,28-Feb-22,2223/02,SME,N,
10048206,THE MORTON PARTNERSHIP LTD,"2,225.00",Conservation,Prof & Consultancy Fees,18-May-22,2223/02,SME,N,
10047785,OPUS PEOPLE SOLUTIONS LTD,89.97,Governance,Agency Staff,14-Apr-22,2223/02,SME,N,
10047785,OPUS PEOPLE SOLUTIONS LTD,288.49,Domestic Waste,Agency Staff,14-Apr-22,2223/02,SME,N,
10047786,OPUS PEOPLE SOLUTIONS LTD,181.9,Governance,Agency Staff,21-Apr-22,2223/02,SME,N,
10047786,OPUS PEOPLE SOLUTIONS LTD,862.2,Homeless Prevention Fund,Agency Staff,21-Apr-22,2223/02,SME,N,
10047786,OPUS PEOPLE SOLUTIONS LTD,93.55,Domestic Waste,Agency Staff,21-Apr-22,2223/02,SME,N,
10047787,OPUS PEOPLE SOLUTIONS LTD,101.46,Governance,Agency Staff,28-Apr-22,2223/02,SME,N,
10047787,OPUS PEOPLE SOLUTIONS LTD,431.6,Homeless Prevention Fund,Agency Staff,28-Apr-22,2223/02,SME,N,
10048173,OPUS PEOPLE SOLUTIONS LTD,722.93,Homeless Prevention Fund,Agency Staff,12-May-22,2223/02,SME,N,
10048485,OPUS PEOPLE SOLUTIONS LTD,86.43,Governance,Agency Staff,26-May-22,2223/02,SME,N,
10048485,OPUS PEOPLE SOLUTIONS LTD,431.6,Homeless Prevention Fund,Agency Staff,26-May-22,2223/02,SME,N,
10048485,OPUS PEOPLE SOLUTIONS LTD,213.64,Housing Standards,Agency Staff,26-May-22,2223/02,SME,N,
10048149,ROSE BUILDERS LTD,"47,265.57",Structural Works,Major Contracts,30-Apr-22,2223/02,SME,N,
10048208,ANNETTE FEENEY,"2,262.00",Devt Policy & Local Plans,Prof & Consultancy Fees,17-May-22,2223/02,ST,Y,50%
10047789,VERTAS GROUP LTD,"13,514.02",Central Postal Serv,Postage,29-Apr-22,2223/02,SME,Y,50%
10047799,VERTAS GROUP LTD,"10,713.60",Unapportionable Central OHs,Security Systems,31-Mar-22,2223/02,SME,N,
10048276,VERTAS GROUP LTD,"11,904.00",Unapportionable Central OHs,Security Systems,30-Apr-22,2223/02,SME,N,
10047635,COLLINS SKIP HIRE,825,Building Services,Waste Disposal,25-Apr-22,2223/02,SME,Y,50%
10047873,COLLINS SKIP HIRE,825,Building Services,Waste Disposal,30-Apr-22,2223/02,SME,Y,50%
10047983,COLLINS SKIP HIRE,275,Building Services,Waste Disposal,09-May-22,2223/02,SME,Y,50%
10048166,COLLINS SKIP HIRE,825,Building Services,Waste Disposal,16-May-22,2223/02,SME,Y,50%
10047900,SUFFOLK MARKET EVENTS,650,Hadleigh Market,Contracted Services,20-Apr-22,2223/02,SME,N,
10047926,SUFFOLK MARKET EVENTS,350,BRRP-MarketTownVision&Invest,Prof & Consultancy Fees,13-Apr-22,2223/02,SME,N,
10047927,SUFFOLK MARKET EVENTS,956.4,BRRP-MarketTownVision&Invest,Prof & Consultancy Fees,05-May-22,2223/02,SME,Y,48%
10047928,SUFFOLK MARKET EVENTS,121.58,RHSSF,"Equipment, Tools & Materials",05-May-22,2223/02,SME,Y,50%
10047928,SUFFOLK MARKET EVENTS,121.62,Innovate Local SIGIF,Misc Supplies & Services Costs,05-May-22,2223/02,SME,Y,50%
10047928,SUFFOLK MARKET EVENTS,48.64,BRRP-MarketTownVision&Invest,Prof & Consultancy Fees,05-May-22,2223/02,SME,Y,50%
10048165,SUFFOLK MARKET EVENTS,650,Hadleigh Market,Contracted Services,15-May-22,2223/02,SME,N,
10047733,SAVILLS,300,Assets & Development,Prof & Consultancy Fees,27-Apr-22,2223/02,SME,N,
10047636,ADVANCE SUPPLIES,438.26,Sheltered Accommodation,Cleaning Materials,22-Apr-22,2223/02,SME,N,
10048253,ADVANCE SUPPLIES,322.77,Open Spaces,Cleaning Materials,13-May-22,2223/02,SME,N,
10047662,HAYS SPECIALIST RECRUITMENT LTD,784.08,Organisational Devt,Agency Staff,25-Apr-22,2223/02,LGE,Y,50%
10047737,HAYS SPECIALIST RECRUITMENT LTD,712.8,Organisational Devt,Agency Staff,27-Apr-22,2223/02,LGE,Y,50%
10047823,HAYS SPECIALIST RECRUITMENT LTD,"1,361.40",Financial Servs,Agency Staff,29-Apr-22,2223/02,LGE,Y,50%
10047923,HAYS SPECIALIST RECRUITMENT LTD,879.12,Organisational Devt,Agency Staff,04-May-22,2223/02,LGE,Y,50%
10047924,HAYS SPECIALIST RECRUITMENT LTD,204,Financial Servs,Agency Staff,04-May-22,2223/02,LGE,Y,50%
10047924,HAYS SPECIALIST RECRUITMENT LTD,306,HRA Accountancy,Agency Staff,04-May-22,2223/02,LGE,Y,50%
10047925,HAYS SPECIALIST RECRUITMENT LTD,612,Financial Servs,Agency Staff,04-May-22,2223/02,LGE,Y,50%
10047925,HAYS SPECIALIST RECRUITMENT LTD,918,HRA Accountancy,Agency Staff,04-May-22,2223/02,LGE,Y,50%
10048082,HAYS SPECIALIST RECRUITMENT LTD,689.04,Organisational Devt,Agency Staff,11-May-22,2223/02,LGE,Y,50%
10048083,HAYS SPECIALIST RECRUITMENT LTD,"1,555.88",Financial Servs,Agency Staff,11-May-22,2223/02,LGE,Y,50%
10048084,HAYS SPECIALIST RECRUITMENT LTD,"1,847.61",Financial Servs,Agency Staff,11-May-22,2223/02,LGE,Y,50%
10048116,HAYS SPECIALIST RECRUITMENT LTD,"1,120.00",Financial Servs,Agency Staff,12-May-22,2223/02,LGE,Y,50%
10048116,HAYS SPECIALIST RECRUITMENT LTD,"1,680.00",HRA Accountancy,Agency Staff,12-May-22,2223/02,LGE,Y,50%
10048117,HAYS SPECIALIST RECRUITMENT LTD,"2,240.00",Financial Servs,Agency Staff,12-May-22,2223/02,LGE,Y,50%
10048118,HAYS SPECIALIST RECRUITMENT LTD,672,Financial Servs,Agency Staff,12-May-22,2223/02,LGE,Y,50%
10048118,HAYS SPECIALIST RECRUITMENT LTD,"1,008.00",HRA Accountancy,Agency Staff,12-May-22,2223/02,LGE,Y,50%
10048154,HAYS SPECIALIST RECRUITMENT LTD,204,Financial Servs,Agency Staff,13-May-22,2223/02,LGE,Y,50%
10048154,HAYS SPECIALIST RECRUITMENT LTD,306,HRA Accountancy,Agency Staff,13-May-22,2223/02,LGE,Y,50%
10048155,HAYS SPECIALIST RECRUITMENT LTD,204,Financial Servs,Agency Staff,13-May-22,2223/02,LGE,Y,50%
10048155,HAYS SPECIALIST RECRUITMENT LTD,306,HRA Accountancy,Agency Staff,13-May-22,2223/02,LGE,Y,50%
10048188,HAYS SPECIALIST RECRUITMENT LTD,"1,120.00",Financial Servs,Agency Staff,16-May-22,2223/02,LGE,Y,50%
10048188,HAYS SPECIALIST RECRUITMENT LTD,"1,680.00",HRA Accountancy,Agency Staff,16-May-22,2223/02,LGE,Y,50%
10048220,HAYS SPECIALIST RECRUITMENT LTD,510,Financial Servs,Agency Staff,18-May-22,2223/02,LGE,Y,50%
10048220,HAYS SPECIALIST RECRUITMENT LTD,765,HRA Accountancy,Agency Staff,18-May-22,2223/02,LGE,Y,50%
10048221,HAYS SPECIALIST RECRUITMENT LTD,879.12,Organisational Devt,Agency Staff,18-May-22,2223/02,LGE,Y,50%
10048222,HAYS SPECIALIST RECRUITMENT LTD,"1,944.85",Financial Servs,Agency Staff,18-May-22,2223/02,LGE,Y,50%
10048323,HAYS SPECIALIST RECRUITMENT LTD,"1,120.00",Financial Servs,Agency Staff,24-May-22,2223/02,LGE,Y,50%
10048323,HAYS SPECIALIST RECRUITMENT LTD,"1,680.00",HRA Accountancy,Agency Staff,24-May-22,2223/02,LGE,Y,50%
10048359,HAYS SPECIALIST RECRUITMENT LTD,"1,555.88",Financial Servs,Agency Staff,25-May-22,2223/02,LGE,Y,50%
10048360,HAYS SPECIALIST RECRUITMENT LTD,879.12,Organisational Devt,Agency Staff,25-May-22,2223/02,LGE,Y,50%
10047893,RICHARD UTTING ASSOCIATES LLP,"5,847.12","Angel Court, Hadleigh",Prof & Consultancy Fees,31-Mar-22,2223/02,SME,N,
10047901,RICHARD UTTING ASSOCIATES LLP,"2,890.00",Bourne Hill Wherstead S106 acq,Prof & Consultancy Fees,03-May-22,2223/02,SME,N,
10047922,RICHARD UTTING ASSOCIATES LLP,"1,889.18",Waldingfield Rd S106 Andersons,Prof & Consultancy Fees,30-Apr-22,2223/02,SME,N,
10047950,RICHARD UTTING ASSOCIATES LLP,"1,188.74","11-12 Ipswich, Brantham",Prof & Consultancy Fees,31-Mar-22,2223/02,SME,N,
10047956,RICHARD UTTING ASSOCIATES LLP,"1,374.42","1-3 Queensland, Shotley",Prof & Consultancy Fees,31-Mar-22,2223/02,SME,N,
10047705,BOXFORD COMMUNITY COUNCIL,"1,000.00",Grants & Contrbns,Grants,26-Apr-22,2223/02,SME,N,
10048095,PUBLIC SEWER SERVICES,"1,872.81",Building Services,Repairs,12-May-22,2223/02,SME,N,
10048096,PUBLIC SEWER SERVICES,"1,872.81",Building Services,Repairs,12-May-22,2223/02,SME,N,
10048097,PUBLIC SEWER SERVICES,"1,778.20",Estate Imps/parking areas,Repairs,12-May-22,2223/02,SME,N,
10048101,PUBLIC SEWER SERVICES,"1,872.81",Building Services,Repairs,30-Apr-22,2223/02,SME,N,
10048105,PUBLIC SEWER SERVICES,842.42,Building Services,Repairs,30-Apr-22,2223/02,SME,N,
10048398,PRIVATE LANDLORD,680,Guaranteed Rent Scheme,Rent Payable,26-May-22,2223/02,SME,N,
10048246,THE OFFSHOOT FOUNDATION,"1,075.00",Holiday Activity Funding,"Equipment, Tools & Materials",19-May-22,2223/02,SME,N,
10048247,THE OFFSHOOT FOUNDATION,806.4,Holiday Activity Funding,"Equipment, Tools & Materials",19-May-22,2223/02,SME,N,
10048269,THE OFFSHOOT FOUNDATION,"2,150.00",Holiday Activity Funding,"Equipment, Tools & Materials",20-May-22,2223/02,SME,N,
20027939,RIX PETROLEUM (EAST ANGLIA) LTD,70,Sheltered Accommodation,Heating Oil,04-May-22,2223/02,SME,N,
20027939,RIX PETROLEUM (EAST ANGLIA) LTD,"1,699.89",Tenancy Services,Heating Oil,04-May-22,2223/02,SME,N,
10048404,SUDBURY PRINT GROUP LTD,598,Guaranteed Rent Scheme,Misc Supplies & Services Costs,25-May-22,2223/02,SME,Y,50%
10048032,KNOWLES ASSOCIATES TFM LTD,"2,475.00",Public Realm TransitionProject,"Equipment, Tools & Materials",03-May-22,2223/02,SME,N,
10048033,KNOWLES ASSOCIATES TFM LTD,"2,475.00",Public Realm TransitionProject,"Equipment, Tools & Materials",03-May-22,2223/02,SME,N,
10048034,KNOWLES ASSOCIATES TFM LTD,825,Public Realm TransitionProject,"Equipment, Tools & Materials",05-Apr-22,2223/02,SME,N,
10048035,KNOWLES ASSOCIATES TFM LTD,825,Public Realm TransitionProject,"Equipment, Tools & Materials",08-Apr-22,2223/02,SME,N,
10048036,KNOWLES ASSOCIATES TFM LTD,374.36,Street & Major Road Cleansing,Plant & Vehicle - Other costs,29-Apr-22,2223/02,SME,N,
10047959,GIPPING OCCUPATIONAL HEALTH LTD,421.89,Health & Safety,Contracted Services,05-May-22,2223/02,SME,Y,50%
10047960,GIPPING OCCUPATIONAL HEALTH LTD,675,Health & Safety,Contracted Services,28-Apr-22,2223/02,SME,Y,50%
10047961,GIPPING OCCUPATIONAL HEALTH LTD,253.13,Health & Safety,Contracted Services,05-May-22,2223/02,SME,N,
10047709,GRAVITAS RECRUITMENT GROUP LTD,"2,000.00",ICT,Agency Staff,20-Apr-22,2223/02,LGE,Y,50%
10048278,GRAVITAS RECRUITMENT GROUP LTD,"2,500.00",ICT,Agency Staff,21-May-22,2223/02,LGE,Y,50%
10048284,SUDBURYS,440,Guaranteed Rent Scheme,Rent Payable,23-May-22,2223/02,SME,N,
10048342,HOME-START IN SUFFOLK,"9,000.00",Grants & Contrbns,Grants,25-May-22,2223/02,SME,N,
10047814,WILLIAM H BROWN ESTATE AGENTS - SUDBURY,725,Guaranteed Rent Scheme,Rent Payable,06-May-22,2223/02,SME,N,
10048274,PORTAL PLAN QUEST LTD,"4,158.00",Devt Management -Applications,Planning Fees,20-May-22,2223/02,SME,N,
10047708,ACTIVLIVES,"1,000.00",Grants & Contrbns,Grants,26-Apr-22,2223/02,SME,N,
10047779,ACTIVLIVES,"5,950.00",Grow Your Community,Contributions & Donations,29-Apr-22,2223/02,SME,N,
10047679,ABBEYCROFT LEISURE,"2,500.00",Suffolk Community Restart Fund,Grants,26-Apr-22,2223/02,LGE,N,
10048469,ABBEYCROFT LEISURE,"1,020.00",Holiday Activity Funding,"Equipment, Tools & Materials",27-May-22,2223/02,LGE,N,
10048470,ABBEYCROFT LEISURE,"1,243.90",Holiday Activity Funding,"Equipment, Tools & Materials",27-May-22,2223/02,LGE,N,
10048471,ABBEYCROFT LEISURE,"1,500.00",Holiday Activity Funding,"Equipment, Tools & Materials",27-May-22,2223/02,LGE,N,
10048477,ABBEYCROFT LEISURE,"7,933.44",Holiday Activity Funding,"Equipment, Tools & Materials",25-Feb-22,2223/02,LGE,N,
10048478,ABBEYCROFT LEISURE,"2,160.00",Holiday Activity Funding,"Equipment, Tools & Materials",31-Dec-21,2223/02,LGE,N,
10047552,BELLWAY HOMES LIMITED (ESSEX DIVISION),"187,057.29",Bourne Hill Wherstead S106 acq,Prof & Consultancy Fees,08-Apr-22,2223/02,LGE,N,
10048212,BELLWAY HOMES LIMITED (ESSEX DIVISION),"330,399.47",Bourne Hill Wherstead S106 acq,Prof & Consultancy Fees,13-May-22,2223/02,LGE,N,
10048160,3 POINT PROPERTY MANAGEMENT LTD,550,Guaranteed Rent Scheme,Rent Payable,16-May-22,2223/02,SME,N,
10047880,WEST SUFFOLK COUNCIL,"30,000.00",Management Team,Subscriptions,03-May-22,2223/02,LGE,Y,50%
10047940,WEST SUFFOLK COUNCIL,"4,600.00",Community Safety-General,Contributions & Donations,05-May-22,2223/02,LGE,N,
10047999,WEST SUFFOLK COUNCIL,"49,534.00",COVID Housing Fund,Misc Supplies & Services Costs,05-May-22,2223/02,LGE,N,
10047643,BEARDWELL CONSTRUCTION LTD,"36,000.00",Kingfisher LC Refurb,Grounds & Site Maintenance,07-Apr-22,2223/02,SME,N,
10048234,DG ACCESSIBLE DESIGNS,"3,856.58",Mand Disabled Facilities Grant,Grants,19-May-22,2223/02,SME,N,
10048111,HUGHES TRADE,284.33,Other Temp Accommodation,Furniture,12-May-22,2223/02,LGE,N,
10048000,APTL ENTERPRISES LTD,"3,652.00",PV Panels,Contracted Services,30-Apr-21,2223/02,SME,Y,44%
10048001,APTL ENTERPRISES LTD,"4,648.00",PV Panels,Contracted Services,30-Apr-21,2223/02,SME,Y,44%
10048196,APTL ENTERPRISES LTD,"5,831.00",PV Panels,Repairs,11-May-22,2223/02,SME,N,
10047757,ANGLIA COMMERCIAL FLOORING LTD,353.13,Building Services,Repairs,26-Apr-22,2223/02,SME,N,
10047758,ANGLIA COMMERCIAL FLOORING LTD,256.82,Building Services,Repairs,26-Apr-22,2223/02,SME,N,
10047759,ANGLIA COMMERCIAL FLOORING LTD,404.5,Building Services,Repairs,25-Apr-22,2223/02,SME,N,
10047760,ANGLIA COMMERCIAL FLOORING LTD,298.56,Building Services,Repairs,28-Apr-22,2223/02,SME,N,
10047761,ANGLIA COMMERCIAL FLOORING LTD,764.52,Building Services,Repairs,28-Apr-22,2223/02,SME,N,
10047781,ANGLIA COMMERCIAL FLOORING LTD,857.98,Building Services,Repairs,28-Apr-22,2223/02,SME,N,
10047930,ANGLIA COMMERCIAL FLOORING LTD,538.27,Building Services,Repairs,20-Dec-21,2223/02,SME,N,
10047932,ANGLIA COMMERCIAL FLOORING LTD,521.45,Building Services,Repairs,20-Dec-21,2223/02,SME,N,
10047933,ANGLIA COMMERCIAL FLOORING LTD,275.99,Building Services,Repairs,07-Feb-22,2223/02,SME,N,
10047936,ANGLIA COMMERCIAL FLOORING LTD,374.45,Building Services,Repairs,02-Mar-22,2223/02,SME,N,
10047938,ANGLIA COMMERCIAL FLOORING LTD,272.88,Building Services,Repairs,02-Mar-22,2223/02,SME,N,
20027930,ANGLIAN WATER BUS (NAT) LTD T/A WAVE,128.3,C Parks General,Water Rates - Metered,12-May-22,2223/02,LGE,N,
20027930,ANGLIAN WATER BUS (NAT) LTD T/A WAVE,690.38,Chilton Depot,Water Rates - Metered,12-May-22,2223/02,LGE,Y,50%
20027930,ANGLIAN WATER BUS (NAT) LTD T/A WAVE,3.97,Friars Meadow Sudb,Water Rates - Metered,12-May-22,2223/02,LGE,N,
20027930,ANGLIAN WATER BUS (NAT) LTD T/A WAVE,40.72,General Rechargeable Works,Misc Supplies & Services Costs,12-May-22,2223/02,LGE,N,
20027930,ANGLIAN WATER BUS (NAT) LTD T/A WAVE,59.99,HQ Energy,Water Rates - Metered,12-May-22,2223/02,LGE,N,
20027930,ANGLIAN WATER BUS (NAT) LTD T/A WAVE,722.43,Public Conveniences,Water Rates - Metered,12-May-22,2223/02,LGE,N,
20027930,ANGLIAN WATER BUS (NAT) LTD T/A WAVE,"2,240.33",Sheltered Accommodation,Water Rates - Metered,12-May-22,2223/02,LGE,N,
20027930,ANGLIAN WATER BUS (NAT) LTD T/A WAVE,136.19,Temporary Accommodation,Water Rates - Metered,12-May-22,2223/02,LGE,N,
20027930,ANGLIAN WATER BUS (NAT) LTD T/A WAVE,156.01,Tenancy Services,Water Rates - Metered,12-May-22,2223/02,LGE,N,
20027938,ST EDMUNDSBURY & IPSWICH DIOCESAN MAT,343.25,Bring Sites,Contributions & Donations,19-May-22,2223/02,LGE,N,
10047899,STUDLEY CAPITAL LIMITED,"3,150.00","BRRP-Hamilton,Boreham&BelleVue",Prof & Consultancy Fees,03-May-22,2223/02,ST,N,
10047730,GREENACRE RECRUITMENT LTD,"2,504.16",Building Services,Agency Staff,27-Apr-22,2223/02,SME,Y,50%
10047915,GREENACRE RECRUITMENT LTD,939.06,Building Services,Agency Staff,04-May-22,2223/02,SME,Y,50%
10046575,BABERGH GROWTH LTD,"5,396.00",Play equip,Prof & Consultancy Fees,04-Mar-22,2223/02,SME,N,
10046623,BABERGH GROWTH LTD,"52,732.00",Belle Vue Refurb/Rplcmt,Prof & Consultancy Fees,04-Mar-22,2223/02,SME,N,
10047889,BABERGH GROWTH LTD,"2,937.00",Belle Vue Refurb/Rplcmt,Prof & Consultancy Fees,30-Apr-22,2223/02,SME,N,
20027943,BYCHOICE LTD,"1,700.00",Guaranteed Rent Scheme,Rent Payable,30-May-22,2223/02,SME,N,
10048295,REEFER PROPERTIES LTD,695,Guaranteed Rent Scheme,Rent Payable,23-May-22,2223/02,SME,N,
10047989,OCN CONTRACTS,"4,880.00",Temporary Accommodation,Furniture,03-May-22,2223/02,SME,N,
10048322,HADLEIGH FOODBANK,"1,715.63",Holiday Activity Funding,"Equipment, Tools & Materials",24-May-22,2223/02,SME,N,
10048039,WILKS HEAD AND EVE LLP,"14,200.00",Financial Servs,Prof & Consultancy Fees,05-May-22,2223/02,SME,N,
10048384,PRIVATE LANDLORD,490,Guaranteed Rent Scheme,Rent Payable,26-May-22,2223/02,SME,N,
10047992,BRANDON WETROOMS,"5,554.11",Mand Disabled Facilities Grant,Grants,09-May-22,2223/02,SME,N,
10047820,PRIVATE LANDLORD,675,Guaranteed Rent Scheme,Rent Payable,06-May-22,2223/02,ST,N,
10048376,PRIVATE LANDLORD,675,Guaranteed Rent Scheme,Rent Payable,26-May-22,2223/02,ST,N,
10048286,PRIVATE LANDLORD,650,Guaranteed Rent Scheme,Rent Payable,23-May-22,2223/02,SME,N,
10048064,EASTLIGHT COMMUNITY HOMES,"2,160.00","Wolsey Grange, Sproughton S106",Prof & Consultancy Fees,11-May-22,2223/02,SME,N,
10048064,EASTLIGHT COMMUNITY HOMES,"4,220.00","Angel Court, Hadleigh",Prof & Consultancy Fees,11-May-22,2223/02,SME,N,
10048064,EASTLIGHT COMMUNITY HOMES,"6,080.00","Green Road, Woolpit",Prof & Consultancy Fees,11-May-22,2223/02,SME,N,
10048064,EASTLIGHT COMMUNITY HOMES,"2,560.00",Waldingfield Rd S106 Andersons,Prof & Consultancy Fees,11-May-22,2223/02,SME,N,
10048064,EASTLIGHT COMMUNITY HOMES,"1,920.00","Bantocks Rd, Gt Walding S106",Prof & Consultancy Fees,11-May-22,2223/02,SME,N,
10048285,PRIVATE LANDLORD,"1,198.00",Guaranteed Rent Scheme,Rent Payable,23-May-22,2223/02,ST,N,
10048079,SOUTH NORFOLK FIRE,300,Organisational Devt,Health & Safety Training,05-May-22,2223/02,SME,Y,50%
10048080,SOUTH NORFOLK FIRE,400,Organisational Devt,Health & Safety Training,05-May-22,2223/02,SME,Y,50%
10047872,BUCHER MUNICIPAL LTD,"1,211.00",Street & Major Road Cleansing,"Equipment, Tools & Materials",03-May-22,2223/02,LGE,N,
10048273,BUCHER MUNICIPAL LTD,818.48,Street & Major Road Cleansing,"Equipment, Tools & Materials",20-May-22,2223/02,LGE,N,
10048396,SEQUENCE UK LTD (WILLIAM H BROWN),700,Guaranteed Rent Scheme,Rent Payable,26-May-22,2223/02,LGE,N,
10048296,PRIVATE LANDLORD,550,Guaranteed Rent Scheme,Rent Payable,23-May-22,2223/02,ST,N,
10048397,PRIVATE LANDLORD,700,Guaranteed Rent Scheme,Rent Payable,26-May-22,2223/02,ST,N,
10048383,PRIVATE LANDLORD,490,Guaranteed Rent Scheme,Rent Payable,26-May-22,2223/02,SME,N,
10047885,SUFFOLK DOORS & WINDOWS LTD,"1,852.00",Major Imps,Repairs,03-May-22,2223/02,SME,N,
10047818,PRIVATE LANDLORD,786.5,Guaranteed Rent Scheme,Rent Payable,06-May-22,2223/02,ST,N,
10047913,PRIVATE LANDLORD,650,Guaranteed Rent Scheme,Rent Payable,10-May-22,2223/02,ST,N,
10048086,COUNTRYSTYLE RECYCLING LTD,"4,457.15",Bring Sites,Contracted Services,30-Apr-22,2223/02,SME,N,
10047801,PRIVATE LANDLORD,700,Guaranteed Rent Scheme,Rent Payable,06-May-22,2223/02,ST,N,
10047802,PRIVATE LANDLORD,800,Guaranteed Rent Scheme,Rent Payable,06-May-22,2223/02,ST,N,
10047803,PRIVATE LANDLORD,800,Guaranteed Rent Scheme,Rent Payable,06-May-22,2223/02,SME,N,
10048153,ARAN INSULATION LTD,"24,820.66",Insulation Imps,Major Contracts,04-May-22,2223/02,SME,N,
10048241,ARAN INSULATION LTD,"24,132.46",Insulation Imps,Improvements,19-May-22,2223/02,SME,N,
10048243,ARAN INSULATION LTD,"5,427.02",Insulation Imps,Improvements,19-May-22,2223/02,SME,N,
10048243,ARAN INSULATION LTD,788.96,Major Imps,Improvements,19-May-22,2223/02,SME,N,
10047771,ORWELL REMOVALS & STORAGE LTD,910,Homeless Prevention Fund,Removal Expenses,28-Apr-22,2223/02,SME,N,
10048176,ORWELL REMOVALS & STORAGE LTD,750,Homeless Prevention Fund,Removal Expenses,06-Apr-22,2223/02,SME,N,
10047920,P TUCKWELL LTD,"63,688.38",Vehicle and Plant Renewals,Plant & Vehicle - Purchase,02-Mar-22,2223/02,SME,N,
10048474,P TUCKWELL LTD,414.54,Open Spaces,"Equipment, Tools & Materials",27-May-22,2223/02,SME,N,
10048325,PRIVATE LANDLORD,580,Guaranteed Rent Scheme,Rent Payable,25-May-22,2223/02,ST,N,
10048387,PRIVATE LANDLORD,500,Guaranteed Rent Scheme,Rent Payable,26-May-22,2223/02,ST,N,
10047826,IAN BOOTH CONSULTANT ENGINEER LTD,623,Open Spaces,Contracted Services,29-Apr-22,2223/02,SME,N,
10048382,PRIVATE LANDLORD,"1,200.00",Guaranteed Rent Scheme,Rent Payable,26-May-22,2223/02,SME,N,
10048388,PRIVATE LANDLORD,550,Guaranteed Rent Scheme,Rent Payable,26-May-22,2223/02,ST,N,
10048114,SSE,386.85,Other HRA Temp Accommodation,Electricity,10-May-22,2223/02,LGE,N,
10047958,JACKSON LIFT SERVICES LTD,"1,041.65",Sheltered Accommodation,Plant Maintenance,05-May-22,2223/02,LGE,N,
10047819,DAVID BURR LETTINGS,700,Guaranteed Rent Scheme,Rent Payable,06-May-22,2223/02,SME,N,
10047792,FOURWAYS VEHICLE SOLUTIONS LTD,329.75,Building Services,Lease Cars - Payment,06-Apr-22,2223/02,SME,Y,50%
10048137,FOURWAYS VEHICLE SOLUTIONS LTD,745.36,Building Services,Lease Cars - Payment,10-May-22,2223/02,SME,Y,50%
10047887,START AFRESH CLEANING LTD,515.67,Street & Major Road Cleansing,General Cleaning,30-Apr-22,2223/02,SME,N,
10047914,PRIVATE LANDLORD,715,Guaranteed Rent Scheme,Rent Payable,10-May-22,2223/02,SME,N,
10047918,BADENOCH & CLARK LTD T/A ADECCO,"2,470.50",Commissioning & Procurement,Agency Staff,03-May-22,2223/02,SME,Y,50%
10047977,BADENOCH & CLARK LTD T/A ADECCO,"1,976.40",Commissioning & Procurement,Agency Staff,25-Apr-22,2223/02,SME,Y,50%
10048051,BADENOCH & CLARK LTD T/A ADECCO,"1,976.40",Commissioning & Procurement,Agency Staff,09-May-22,2223/02,SME,Y,50%
10048143,BADENOCH & CLARK LTD T/A ADECCO,"2,470.50",Commissioning & Procurement,Agency Staff,22-Apr-22,2223/02,SME,Y,50%
10048144,BADENOCH & CLARK LTD T/A ADECCO,"1,976.40",Commissioning & Procurement,Agency Staff,22-Apr-22,2223/02,SME,Y,50%
10048187,BADENOCH & CLARK LTD T/A ADECCO,"2,470.50",Commissioning & Procurement,Agency Staff,16-May-22,2223/02,SME,Y,50%
10048304,BADENOCH & CLARK LTD T/A ADECCO,"2,470.50",Commissioning & Procurement,Agency Staff,23-May-22,2223/02,SME,Y,50%
10047815,SHJ HOMES LTD,500,Guaranteed Rent Scheme,Rent Payable,06-May-22,2223/02,SME,N,
10048161,SHJ HOMES LTD,550,Guaranteed Rent Scheme,Rent Payable,16-May-22,2223/02,SME,N,
10047963,LONDON SCHOOL OF MEDIATION LTD,"2,095.00",Tenancy Services,Training,05-May-22,2223/02,SME,Y,50%
10048294,PRIVATE LANDLORD,500,Guaranteed Rent Scheme,Rent Payable,23-May-22,2223/02,ST,N,
10048260,KEYS REMOVALS LTD,700,Homeless Prevention Fund,Removal Expenses,19-May-22,2223/02,SME,N,
10048198,FOOTBALL FUN FACTORY (FRANCHISING) LTD,"1,260.00",Holiday Activity Funding,"Equipment, Tools & Materials",17-May-22,2223/02,SME,N,
10048211,ANGLIA SPORTS MANAGEMENT LTD,"1,687.50",Holiday Activity Funding,"Equipment, Tools & Materials",12-May-22,2223/02,SME,N,
10048175,NAGELS UK LTD,"1,360.00",C Parks General,Stationery,16-May-22,2223/02,SME,N,
10048197,HIVE,"1,000.00",Grants & Contrbns,Contributions & Donations,17-May-22,2223/02,SME,N,
10048218,HIVE,"1,600.00",Grants & Contrbns,Contributions & Donations,18-May-22,2223/02,SME,N,
10048158,PRIVATE LANDLORD,675,Guaranteed Rent Scheme,Rent Payable,16-May-22,2223/02,ST,N,
10047817,PRIVATE LANDLORD,500,Guaranteed Rent Scheme,Rent Payable,06-May-22,2223/02,ST,N,
10048081,SWECO CONSULTING ENGINEERS LTD,345,Devt Management -Applications,Highways  Consultancy,11-May-22,2223/02,LGE,N,
10048157,PRIVATE LANDLORD,650,Guaranteed Rent Scheme,Rent Payable,16-May-22,2223/02,ST,N,
10048287,PRIVATE LANDLORD,650,Guaranteed Rent Scheme,Rent Payable,23-May-22,2223/02,ST,N,
20027936,HINTLESHAM HALL HOTEL LTD,"1,508.54",Cost of Democracy,Chairman's Expenses,13-May-22,2223/02,SME,N,
10048050,MAXIM SPORTS COACHING,"1,080.00",Holiday Activity Funding,"Equipment, Tools & Materials",10-May-22,2223/02,SME,N,
10048159,PRIVATE LANDLORD,695,Guaranteed Rent Scheme,Rent Payable,16-May-22,2223/02,ST,N,
10048250,PRIVATE LANDLORD,469.98,Homeless Prevention Fund,Misc Supplies & Services Costs,19-May-22,2223/02,ST,N,
10047910,LAND SURVEY SOLS LTD T/A SURVEY SOLS,795,GF - Misc Capital Receipts,Prof & Consultancy Fees,08-Apr-22,2223/02,SME,N,
10047706,SUFFOLK CRICKET BOARD LTD,"2,250.00",Suffolk Community Restart Fund,Grants,26-Apr-22,2223/02,SME,N,
10047707,COPDOCK & WASHBROOK TENNIS AND BADMINTON,"1,809.00",Suffolk Community Restart Fund,Grants,26-Apr-22,2223/02,SME,N,
10048063,RW SPENCER & SON LTD,"6,995.00",Mand Disabled Facilities Grant,Grants,11-May-22,2223/02,SME,N,
20027937,JB PROPERTY SOLUTIONS (SUFFOLK) LTD T/A,550,Guaranteed Rent Scheme,Rent Payable,17-May-22,2223/02,SME,N,
10048207,FORK KITCHEN & DELI,924.82,Business Innovation Grants,Grants,18-May-22,2223/02,SME,N,
20027940,KBM HOUSE SHARE & PROPERTY MANAGEMENT LT,"1,300.00",Guaranteed Rent Scheme,Rent Payable,23-May-22,2223/02,SME,N,
10048332,PAY 360 LIMITED,900,Current Assets,Receipts Control,05-May-22,2223/02,0,N,
10048332,PAY 360 LIMITED,4.04,Bank Chgs,Bank Charges,05-May-22,2223/02,0,N,
10048333,PAY 360 LIMITED,900,Current Assets,Receipts Control,05-May-22,2223/02,0,N,
10048333,PAY 360 LIMITED,4.04,Bank Chgs,Bank Charges,05-May-22,2223/02,0,N,
10048334,PAY 360 LIMITED,599.21,Current Assets,Receipts Control,05-May-22,2223/02,0,N,
10048334,PAY 360 LIMITED,4.04,Bank Chgs,Bank Charges,05-May-22,2223/02,0,N,
20027944,PRIVATE LANDLORD,750,Guaranteed Rent Scheme,Misc Supplies & Services Costs,30-May-22,2223/02,ST,N,
229,SOLACE GROUP LTD,-100,Management Team,Conference Expenses,18-May-22,2223/02,SME,Y,50%
1016,ELMSETT PRIMARY SCHOOL RECYCLING CENTRE,-343.25,Bring Sites,Contributions & Donations,06-May-22,2223/02,SME,N,
228,LEX AUTOLEASE,-150.06,Building Services,Lease Cars - Payment,13-May-22,2223/02,SME,Y,50%
10048491,VERTAS GROUP LTD,-257.72,Endeavour House - HQ,Plant & Vehicle - Other costs,21-Dec-21,2223/02,SME,Y,50%
10048370,NORTHERN HOUSING CONSORTIUM,-155.6,General/Supervision & Mgmt,Subscriptions,31-Mar-22,2223/02,SME,N,
10048209,A C LEIGH (NORWICH) LTD,-35.56,Building Services,"Equipment, Tools & Materials",03-May-22,2223/02,SME,N,
1017,EASTLIGHT COMMUNITY HOMES,"-2,160.00","Wolsey Grange, Sproughton S106",Prof & Consultancy Fees,26-May-22,2223/02,SME,N,
1017,EASTLIGHT COMMUNITY HOMES,"-4,220.00","Angel Court, Hadleigh",Prof & Consultancy Fees,26-May-22,2223/02,SME,N,
1017,EASTLIGHT COMMUNITY HOMES,"-6,080.00","Green Road, Woolpit",Prof & Consultancy Fees,26-May-22,2223/02,SME,N,
1017,EASTLIGHT COMMUNITY HOMES,"-2,560.00",Waldingfield Rd S106 Andersons,Prof & Consultancy Fees,26-May-22,2223/02,SME,N,
1017,EASTLIGHT COMMUNITY HOMES,"-1,920.00","Bantocks Rd, Gt Walding S106",Prof & Consultancy Fees,26-May-22,2223/02,SME,N,
10048481,AARON SERVICES LTD,"27,286.09",Planned Maint - Heating,Property Servicing,29-Apr-22,2223/03,SME,N,
10048924,AARON SERVICES LTD,"27,286.09",Planned Maint - Heating,Property Servicing,31-May-22,2223/03,SME,N,
10048336,AE WHITE SURFACING,398.56,Insurance Claims,Misc Premises Costs,30-Apr-22,2223/03,SME,N,
10048703,AE WHITE SURFACING,411.85,Insurance Claims,Misc Premises Costs,06-Jun-22,2223/03,SME,N,
10047921,BOTTOMLINE TECHNOLOGIES,667.8,ICT,Software Licnse (Line of Bus) ,30-Apr-22,2223/03,LGE,Y,50%
10048585,BOTTOMLINE TECHNOLOGIES,667.8,ICT,Software Licnse (Line of Bus) ,31-May-22,2223/03,LGE,Y,50%
10048669,BOWER FULLER,456.29,Sheltered Accommodation,Repairs,31-May-22,2223/03,SME,N,
10048671,BOWER FULLER,"2,250.60",Temporary Accommodation,Fire Prevention,31-May-22,2223/03,SME,N,
10048672,BOWER FULLER,"2,142.36",Estate Imps/parking areas,Improvements,31-May-22,2223/03,SME,N,
10048673,BOWER FULLER,514.2,Sheltered Accommodation,Fire Prevention,31-May-22,2223/03,SME,N,
10048674,BOWER FULLER,183.76,Public Conveniences,Legionella Testing,31-May-22,2223/03,SME,N,
10048674,BOWER FULLER,183.77,Borehamgate Shopping Centre,Legionella Testing,31-May-22,2223/03,SME,N,
10048675,BOWER FULLER,371.84,Hadl C Parks,Repairs,31-May-22,2223/03,SME,N,
10048679,BOWER FULLER,956.19,Assets & Development,Contracted Services,31-May-22,2223/03,SME,N,
10048681,BOWER FULLER,"1,938.75",Borehamgate Shopping Centre,Property Enhancements & Imps,31-May-22,2223/03,SME,N,
10048782,BOWER FULLER,"32,292.47",Borehamgate Shopping Centre,Repairs,13-Jun-22,2223/03,SME,N,
10048732,CAPITA BUSINESS SERVICES LTD,"21,654.79",Open Housing Joint Project,Improvements,07-Jun-22,2223/03,LGE,Y,50%
10048779,AQUASAMPLERS,571,Water Sampling,Sampling & Analysis,30-Apr-22,2223/03,SME,N,
10048723,CHEQUERS HOTEL LTD,910,Homelessness Private Sector,B&B Costs,30-May-22,2223/03,SME,N,
10048726,CHEQUERS HOTEL LTD,487.5,Homelessness Private Sector,B&B Costs,30-May-22,2223/03,SME,N,
10048727,CHEQUERS HOTEL LTD,260,Homelessness Private Sector,B&B Costs,30-May-22,2223/03,SME,N,
10048728,CHEQUERS HOTEL LTD,910,Homelessness Private Sector,B&B Costs,30-May-22,2223/03,SME,N,
10048351,CLARKE FENCING LTD,305.96,Street & Major Road Cleansing,Plant & Vehicle - Other costs,23-May-22,2223/03,SME,N,
10048534,CLARKE FENCING LTD,"1,651.42",Building Services,Repairs,23-May-22,2223/03,SME,N,
10048417,CLARKES OF WALSHAM LTD,"1,589.45",Building Services,Repairs,27-May-22,2223/03,SME,N,
10048406,D W ADAMS LTD,273,Disabled Facilities (Revenue),Repairs,27-May-22,2223/03,SME,N,
10048407,D W ADAMS LTD,622,Building Services,Repairs,27-May-22,2223/03,SME,N,
10048583,D W ADAMS LTD,"4,429.00",Council House Adaptions,Improvements,02-Jun-22,2223/03,SME,N,
10048767,D W ADAMS LTD,793,Building Services,Repairs,13-Jun-22,2223/03,SME,N,
10048769,D W ADAMS LTD,687,Building Services,Repairs,13-Jun-22,2223/03,SME,N,
10048869,D W ADAMS LTD,"4,635.00",Council House Adaptions,Improvements,17-Jun-22,2223/03,SME,N,
10048870,D W ADAMS LTD,"1,373.00",Disabled Facilities (Revenue),Repairs,17-Jun-22,2223/03,SME,N,
10048879,D W ADAMS LTD,"1,667.00",Building Services,Repairs,17-Jun-22,2223/03,SME,N,
10049035,D W ADAMS LTD,569,Building Services,Repairs,24-Jun-22,2223/03,SME,N,
10049036,D W ADAMS LTD,"5,625.00",Council House Adaptions,Improvements,24-Jun-22,2223/03,SME,N,
10048686,DMA HEALTH AND SAFETY LTD,435,Structural Works,Prof & Consultancy Fees,08-Jun-22,2223/03,SME,N,
10048905,EAST OF ENGLAND LGA,"10,007.03",Management Team,Subscriptions,13-Jun-22,2223/03,SME,N,
10048688,ENER-G SWITCH2 LTD,451.78,Temporary Accommodation,Repairs,08-Jun-22,2223/03,SME,N,
10047654,ENGLISH SECURITY,175.1,Asset Management,Property Servicing,12-Apr-22,2223/03,SME,N,
10047654,ENGLISH SECURITY,236.9,Chilton Depot,Fire Prevention,12-Apr-22,2223/03,SME,Y,50%
10047654,ENGLISH SECURITY,141.63,Headquarters General,Fire Prevention,12-Apr-22,2223/03,SME,N,
10047654,ENGLISH SECURITY,"1,277.51",Sheltered Accommodation,Fire Prevention,12-Apr-22,2223/03,SME,N,
10047654,ENGLISH SECURITY,509.75,Temporary Accommodation,Fire Prevention,12-Apr-22,2223/03,SME,N,
10047654,ENGLISH SECURITY,"3,757.75",Tenancy Services,Fire Prevention,12-Apr-22,2223/03,SME,N,
10047654,ENGLISH SECURITY,206,Wenham Depot,Fire Prevention,12-Apr-22,2223/03,SME,Y,50%
10048639,ENVIROVENT LTD,460,Building Services,Repairs,01-Jun-22,2223/03,SME,N,
10048742,ENVIROVENT LTD,460,Building Services,Repairs,07-Jun-22,2223/03,SME,N,
10048865,FELGAINS CARE CENTRE,"4,842.00",Council House Adaptions,Improvements,16-Jun-22,2223/03,SME,N,
10049008,FELGAINS CARE CENTRE,"1,307.00",Mand Disabled Facilities Grant,Grants,23-Jun-22,2223/03,SME,N,
10048511,FELLBRIDGE BUILDING SERVICES,504.19,Building Services,Repairs,31-May-22,2223/03,SME,N,
10048512,FELLBRIDGE BUILDING SERVICES,978.02,Building Services,Repairs,31-May-22,2223/03,SME,N,
10048584,FELLBRIDGE BUILDING SERVICES,766.6,Building Services,Repairs,02-Jun-22,2223/03,SME,N,
10048716,FELLBRIDGE BUILDING SERVICES,"1,186.26",Building Services,Repairs,09-Jun-22,2223/03,SME,N,
10048717,FELLBRIDGE BUILDING SERVICES,306.64,Building Services,Repairs,09-Jun-22,2223/03,SME,N,
10048718,FELLBRIDGE BUILDING SERVICES,285.2,Building Services,Repairs,09-Jun-22,2223/03,SME,N,
10048719,FELLBRIDGE BUILDING SERVICES,645.53,Building Services,Repairs,09-Jun-22,2223/03,SME,N,
10048720,FELLBRIDGE BUILDING SERVICES,306.64,Building Services,Repairs,09-Jun-22,2223/03,SME,N,
10048721,FELLBRIDGE BUILDING SERVICES,663.37,Building Services,Repairs,09-Jun-22,2223/03,SME,N,
10048862,FELLBRIDGE BUILDING SERVICES,"7,697.41",Building Services,Repairs,16-Jun-22,2223/03,SME,N,
10048915,FELLBRIDGE BUILDING SERVICES,"26,626.03",Building Services,Repairs,20-Jun-22,2223/03,SME,N,
10048916,FELLBRIDGE BUILDING SERVICES,"6,359.44",Building Services,Repairs,20-Jun-22,2223/03,SME,N,
10048992,FELLBRIDGE BUILDING SERVICES,"8,553.33",Building Services,Repairs,23-Jun-22,2223/03,SME,N,
10049002,FELLBRIDGE BUILDING SERVICES,"6,687.23",Council House Adaptions,Improvements,23-Jun-22,2223/03,SME,N,
10048493,FORE-MOST GARAGE DOORS LTD,"1,395.66",Building Services,Repairs,31-May-22,2223/03,SME,N,
10048917,GB ADAPTIONS LTD,"3,736.00",Mand Disabled Facilities Grant,Grants,20-Jun-22,2223/03,SME,N,
10048926,GB ADAPTIONS LTD,"5,798.00",Mand Disabled Facilities Grant,Grants,21-Jun-22,2223/03,SME,N,
10048312,GHB ROOFING,"10,452.00",Roofing,Improvements,24-May-22,2223/03,SME,N,
10048313,GHB ROOFING,"9,247.50",Major Imps,Improvements,24-May-22,2223/03,SME,N,
10048873,GHB ROOFING,970,Building Services,Repairs,31-May-22,2223/03,SME,N,
10048874,GHB ROOFING,800,Building Services,Repairs,31-May-22,2223/03,SME,N,
10048606,HAYES DIGGINS BUILDERS,"9,840.00",Insulation Imps,Improvements,06-Jun-22,2223/03,SME,N,
10048789,HAYES DIGGINS BUILDERS,"1,250.00",Kingfisher Leisure Centre,Repairs,13-Jun-22,2223/03,SME,N,
10048820,HAYES DIGGINS BUILDERS,810,Building Services,Repairs,25-Apr-22,2223/03,SME,N,
10048920,HAYES DIGGINS BUILDERS,450,Kingfisher Leisure Centre,Repairs,20-Jun-22,2223/03,SME,N,
10048410,KEN GRIME & SON LTD,"1,362.89",Building Services,Repairs,26-May-22,2223/03,SME,N,
10048528,KENDA-CLEAN,27,Chilton Depot,Window Cleaning,30-May-22,2223/03,SME,Y,50%
10048528,KENDA-CLEAN,"1,217.00",Sheltered Accommodation,Window Cleaning,30-May-22,2223/03,SME,N,
10048528,KENDA-CLEAN,123,Temporary Accommodation,Window Cleaning,30-May-22,2223/03,SME,N,
10048528,KENDA-CLEAN,771,Tenancy Services,Window Cleaning,30-May-22,2223/03,SME,N,
10048796,KEYWAYS THE LOCKSMITHS LTD,830,Sheltered Accommodation,Repairs,14-Jun-22,2223/03,SME,N,
10048465,M & H CIVIL ENGINEERING LTD,754.05,Building Services,Repairs,27-May-22,2223/03,SME,N,
10048640,M & H CIVIL ENGINEERING LTD,647.7,Building Services,Repairs,07-Jun-22,2223/03,SME,N,
10049013,MALJON TIMBER PRESERVATION LTD,"1,320.00",Building Services,Repairs,23-Jun-22,2223/03,SME,N,
10048693,MERCURY BUILDING SERVICES LTD,314,Hadleigh Pool,Repairs,08-Jun-22,2223/03,SME,N,
10048842,MERCURY BUILDING SERVICES LTD,"5,498.00",Pld Maint/Enhncmts-Kingfisher,Improvements,15-Jun-22,2223/03,SME,N,
10048871,MERCURY BUILDING SERVICES LTD,"18,250.00",Pld Maint/Enhncmts-Kingfisher,Improvements,17-Jun-22,2223/03,SME,N,
10048544,MERLIN DMS LTD,510,ICT,Contracted Services,01-Jun-22,2223/03,SME,Y,50%
10048547,MERLIN DMS LTD,510,ICT,Contracted Services,01-Jun-22,2223/03,SME,Y,50%
10049010,MONTHIND CLEAN LTD,665.83,Jnt Waste Contract,General Cleaning,15-Jun-22,2223/03,LGE,Y,50%
10048787,PITMAN BROTHERS (DECORATORS) LTD,450,Building Services,Repairs,08-Jun-22,2223/03,SME,N,
10049012,PITMAN BROTHERS (DECORATORS) LTD,"1,300.00",Building Services,Repairs,18-Jun-22,2223/03,SME,N,
10048609,PRO-FLAT SPECIALIST SERVICES LTD,876,Major Imps,Improvements,31-May-22,2223/03,SME,N,
10048627,PRO-FLAT SPECIALIST SERVICES LTD,876,Major Imps,Improvements,31-May-22,2223/03,SME,N,
10048722,PRO-FLAT SPECIALIST SERVICES LTD,"1,225.00",Building Services,Repairs,31-May-22,2223/03,SME,N,
10048532,REID PLUMBING & HEATING CONTRACTORS LTD,"13,911.94",Central Heating,Major Contracts,01-Jun-22,2223/03,SME,N,
10048420,SEAGER HOME SOLUTIONS,"5,933.25",Building Services,Repairs,27-May-22,2223/03,SME,N,
10048421,SEAGER HOME SOLUTIONS,"5,178.93",Building Services,Repairs,27-May-22,2223/03,SME,N,
10048775,SEAGER HOME SOLUTIONS,"7,435.00",Mand Disabled Facilities Grant,Grants,13-Jun-22,2223/03,SME,N,
10048687,SUFFOLK POLICE & CRIME COMMISSIONER,"1,000.00",Homelessness Private Sector,Contributions to other Bodies,08-Jun-22,2223/03,LGE,N,
10048172,SUFFOLK TREE SERVICES LTD,350,Tenancy Services,Tree felling/maintenance,13-May-22,2223/03,SME,N,
10048711,SUFFOLK TREE SERVICES LTD,"2,800.00",Public Tree Programme,Tree felling/maintenance,08-Jun-22,2223/03,SME,N,
10048858,SUFFOLK TREE SERVICES LTD,"1,650.00",Amenity Areas,Tree felling/maintenance,14-Jun-22,2223/03,SME,N,
10048923,SUFFOLK TREE SERVICES LTD,350,Public Tree Programme,Tree felling/maintenance,20-Jun-22,2223/03,SME,N,
10048422,SUREFIX,"1,671.92",Major Imps,Improvements,02-May-22,2223/03,SME,N,
10048423,SUREFIX,"1,470.00",Major Imps,Improvements,19-May-22,2223/03,SME,N,
10048424,SUREFIX,"1,100.00",Major Imps,Improvements,19-May-22,2223/03,SME,N,
10048425,SUREFIX,800,Major Imps,Improvements,16-May-22,2223/03,SME,N,
10048426,SUREFIX,900,Major Imps,Repairs,10-May-22,2223/03,SME,N,
10048427,SUREFIX,850,Major Imps,Improvements,16-May-22,2223/03,SME,N,
10048428,SUREFIX,400,Building Services,Repairs,16-May-22,2223/03,SME,N,
10048429,SUREFIX,800,Major Imps,Improvements,10-May-22,2223/03,SME,N,
10048430,SUREFIX,850,Major Imps,Repairs,11-May-22,2223/03,SME,N,
10048431,SUREFIX,820,Building Services,Repairs,10-May-22,2223/03,SME,N,
10048432,SUREFIX,800,Major Imps,Improvements,20-May-22,2223/03,SME,N,
10048433,SUREFIX,900,Major Imps,Repairs,17-May-22,2223/03,SME,N,
10048451,SUREFIX,400.48,Building Services,Repairs,10-May-22,2223/03,SME,N,
10048452,SUREFIX,255.96,Building Services,Repairs,10-May-22,2223/03,SME,N,
10048454,SUREFIX,900,Major Imps,Repairs,20-May-22,2223/03,SME,N,
10048455,SUREFIX,800,Major Imps,Improvements,19-May-22,2223/03,SME,N,
10048458,SUREFIX,421.92,Building Services,Repairs,20-May-22,2223/03,SME,N,
10048460,SUREFIX,"1,050.00",Major Imps,Improvements,25-May-22,2223/03,SME,N,
10048461,SUREFIX,800,Major Imps,Repairs,19-May-22,2223/03,SME,N,
10048464,SUREFIX,298.13,Building Services,Repairs,09-May-22,2223/03,SME,N,
10048755,SUREFIX,"2,495.04",Window & Door Rplcmts,Improvements,09-Jun-22,2223/03,SME,N,
10048821,SUREFIX,"2,410.88",Major Imps,Improvements,30-May-22,2223/03,SME,N,
10048822,SUREFIX,"1,600.00",Major Imps,Repairs,09-Jun-22,2223/03,SME,N,
10048823,SUREFIX,"1,552.70",Window & Door Rplcmts,Improvements,31-May-22,2223/03,SME,N,
10048824,SUREFIX,283.48,Window & Door Rplcmts,Improvements,07-Jun-22,2223/03,SME,N,
10048829,SUREFIX,"2,050.00",Major Imps,Improvements,10-Jun-22,2223/03,SME,N,
10048886,SUREFIX,"1,700.00",Major Imps,Repairs,15-Jun-22,2223/03,SME,N,
10048887,SUREFIX,"7,100.00",Window & Door Rplcmts,Improvements,13-Jun-22,2223/03,SME,N,
10048891,SUREFIX,900,Major Imps,Repairs,17-Jun-22,2223/03,SME,N,
10048892,SUREFIX,316.44,Building Services,Repairs,09-Jun-22,2223/03,SME,N,
10048893,SUREFIX,"1,213.74",Window & Door Rplcmts,Improvements,16-Jun-22,2223/03,SME,N,
10048479,TANKCHANGE LTD,420,Central Heating,Improvements,18-May-22,2223/03,SME,N,
10048581,TANKCHANGE LTD,"2,245.00",Central Heating,Improvements,02-Jun-22,2223/03,SME,N,
10048582,TANKCHANGE LTD,"2,395.00",Central Heating,Improvements,02-Jun-22,2223/03,SME,N,
10048983,THERMATECH,295,Tenancy Services,Fire Prevention,22-Jun-22,2223/03,SME,N,
10048878,TRUCKEAST LTD,353.5,Open Spaces,Plant & Vehicle - Other costs,17-Jun-22,2223/03,LGE,N,
10048608,VISIT EAST ANGLIA LTD,"7,000.00",Visitor Economy,Sampling & Analysis,06-Jun-22,2223/03,SME,N,
10048505,WINDIMAN LTD,"1,697.46",Major Imps,Improvements,31-May-22,2223/03,SME,N,
10048632,WINDIMAN LTD,760,Building Services,Repairs,07-Jun-22,2223/03,SME,N,
10049005,WINDIMAN LTD,367.79,Building Services,Repairs,23-Jun-22,2223/03,SME,N,
10049006,WINDIMAN LTD,"5,400.00",Window & Door Rplcmts,Improvements,23-Jun-22,2223/03,SME,N,
10049011,WINDIMAN LTD,"2,124.00",Major Imps,Improvements,23-Jun-22,2223/03,SME,N,
10048799,WORKWEAR (EAST ANGLIA) LTD,227.23,Open Spaces,Protective clothing,06-Jun-22,2223/03,SME,N,
10048799,WORKWEAR (EAST ANGLIA) LTD,227.22,Street & Major Road Cleansing,Protective clothing,06-Jun-22,2223/03,SME,N,
10048492,ARCHANT COMMUNITY MEDIA LTD,778.7,Devt Management -Applications,Advertising&mkting (non-staff),17-Apr-22,2223/03,LGE,N,
10048993,ARCHANT COMMUNITY MEDIA LTD,593.3,Devt Management -Applications,Advertising&mkting (non-staff),18-Jun-22,2223/03,LGE,N,
10048995,ARCHANT COMMUNITY MEDIA LTD,469.7,Devt Management -Applications,Advertising&mkting (non-staff),11-Jun-22,2223/03,LGE,N,
10048996,ARCHANT COMMUNITY MEDIA LTD,469.7,Devt Management -Applications,Advertising&mkting (non-staff),31-May-22,2223/03,LGE,N,
10048997,ARCHANT COMMUNITY MEDIA LTD,933.2,Devt Management -Applications,Advertising&mkting (non-staff),28-May-22,2223/03,LGE,N,
10048999,ARCHANT COMMUNITY MEDIA LTD,696.08,Gambling & Small Lotteries,Advertising&mkting (non-staff),29-Apr-22,2223/03,LGE,N,
10048545,BUILDBASE,310.2,Assets & Development,Repairs,31-May-22,2223/03,LGE,N,
10048599,IPSWICH BOROUGH COUNCIL,"5,500.00",The Greenways Project,Contributions & Donations,14-Apr-22,2223/03,LGE,N,
10048840,IPSWICH BOROUGH COUNCIL,"11,057.74",Shared Revenues Partnership,Contributions to other Bodies,09-Jun-22,2223/03,LGE,N,
10048841,IPSWICH BOROUGH COUNCIL,"16,866.00",Shared Revenues Partnership,Contributions to other Bodies,09-Jun-22,2223/03,LGE,N,
10048938,IPSWICH BOROUGH COUNCIL,"7,775.92",Shared Revenues Partnership,Contributions to other Bodies,14-Jun-22,2223/03,LGE,N,
10048939,IPSWICH BOROUGH COUNCIL,484,Shared Revenues Partnership,Contributions to other Bodies,15-Jun-22,2223/03,LGE,N,
10049000,IPSWICH BOROUGH COUNCIL,"40,704.00",Endeavour House - HQ,NNDR Payable,06-Jun-22,2223/03,LGE,Y,50%
10049001,IPSWICH BOROUGH COUNCIL,"39,936.00",Endeavour House - HQ,NNDR Payable,06-Jun-22,2223/03,LGE,Y,50%
10049052,IPSWICH BOROUGH COUNCIL,"8,785.10",Shared Revenues Partnership,Contributions to other Bodies,24-Jun-22,2223/03,LGE,N,
20027950,EDF ENERGY,343.79,Tenancy Services,Electricity,25-May-22,2223/03,LGE,N,
10048335,J BREHENY CONTRACTORS LTD,"61,041.24",Building Services,Repairs,17-May-22,2223/03,LGE,N,
10048958,J BREHENY CONTRACTORS LTD,"91,885.53","Schoolfield, Glemsford",Improvements,21-Jun-22,2223/03,LGE,N,
20027957,GPC BARCLAYS,"4,408.54",Current Assets,Barclaycard Control,16-Jun-22,2223/03,LGE,Y,
10048554,STANNAH STAIRLIFTS LTD,"2,672.96",Stairlifts,Repairs,01-Jun-22,2223/03,LGE,N,
10048658,STANNAH STAIRLIFTS LTD,"1,700.00",Stairlifts,Repairs,07-Jun-22,2223/03,LGE,N,
20027962,COMPUTERSHARE ,636,Current Assets,ChildCare Vouchers-Control,27-Jun-22,2223/03,LGE,N,
10048944,HOLBROOK PARISH COUNCIL,"7,700.00",Suffolk Youth Focus project,Grants,21-Jun-22,2223/03,SME,N,
10048861,NEW ANGLIA LOCAL ENTERPRISE PARTNERSHIP,"7,000.00",Management Team,Advertising&mkting (non-staff),08-Jun-22,2223/03,SME,N,
10048341,SUFFOLK COUNTY COUNCIL,"59,611.45",Trade Waste,Trade Waste Disposal,24-May-22,2223/03,LGE,N,
10048371,SUFFOLK COUNTY COUNCIL,"15,000.00",Climate Change and Sustainabil,Contributions to other Bodies,20-May-22,2223/03,LGE,N,
10048605,SUFFOLK COUNTY COUNCIL,"177,295.42",ICT,Major Contracts,01-Jun-22,2223/03,LGE,Y,50%
10048628,SUFFOLK COUNTY COUNCIL,"1,250.00",Community Safety-General,Contributions & Donations,07-Jun-22,2223/03,LGE,N,
10048741,SUFFOLK COUNTY COUNCIL,"8,323.49",Domestic Waste,MRF Disposal,09-Jun-22,2223/03,LGE,N,
10048741,SUFFOLK COUNTY COUNCIL,"14,494.23",Garden Waste,Garden Waste Disposal,09-Jun-22,2223/03,LGE,N,
10048783,SUFFOLK COUNTY COUNCIL,"1,235.00",Land Chgs,Contracted Services,10-Jun-22,2223/03,LGE,N,
10048784,SUFFOLK COUNTY COUNCIL,573.92,ICT,Desktop Software,10-Jun-22,2223/03,LGE,Y,50%
10048838,SUFFOLK COUNTY COUNCIL,"2,415.00",Taxi & Private Hire Licensing,Prof & Consultancy Fees,14-Jun-22,2223/03,LGE,N,
10048910,SUFFOLK COUNTY COUNCIL,787.5,Organisational Devt,Misc Supplies & Services Costs,17-Jun-22,2223/03,LGE,Y,50%
10048987,SUFFOLK COUNTY COUNCIL,"10,657.64",Organisational Devt,Contracted Services,21-Jun-22,2223/03,LGE,Y,50%
10049079,SUFFOLK COUNTY COUNCIL,"2,957.68",Info Mgmt,Contracted Services,27-Jun-22,2223/03,LGE,Y,50%
10048476,REED SPECIALIST RECRUITMENT LTD,731.46,Financial Servs,Agency Staff,20-May-22,2223/03,LGE,Y,50%
10048580,REED SPECIALIST RECRUITMENT LTD,581.16,Financial Servs,Agency Staff,27-May-22,2223/03,LGE,Y,50%
10048757,REED SPECIALIST RECRUITMENT LTD,450.9,Financial Servs,Agency Staff,10-Jun-22,2223/03,LGE,Y,50%
10048881,REED SPECIALIST RECRUITMENT LTD,751.5,Financial Servs,Agency Staff,10-Jun-22,2223/03,LGE,Y,50%
10049037,REED SPECIALIST RECRUITMENT LTD,751.5,Financial Servs,Agency Staff,17-Jun-22,2223/03,LGE,Y,50%
10049040,TELEFONICA UK LIMITED - O2,333.92,ICT,Telephone Costs,27-Jun-22,2223/03,LGE,Y,50%
10049042,LANDMARK CHAMBERS,525,Devt Management -Applications,Legal ex App proj&pre-decn adv,10-Jun-22,2223/03,SME,N,
20027948,GAZPROM ENERGY,173.08,Belle Vue House,Gas,18-May-22,2223/03,SME,N,
20027948,GAZPROM ENERGY,68.89,HQ Energy,Gas,18-May-22,2223/03,SME,N,
20027948,GAZPROM ENERGY,"3,771.68",Sheltered Accommodation,Gas,18-May-22,2223/03,SME,N,
20027948,GAZPROM ENERGY,178.03,Temporary Accommodation,Gas,18-May-22,2223/03,SME,N,
20027958,GAZPROM ENERGY,140.57,Belle Vue House,Gas,17-Jun-22,2223/03,SME,N,
20027958,GAZPROM ENERGY,71.18,HQ Energy,Gas,17-Jun-22,2223/03,SME,N,
20027958,GAZPROM ENERGY,"2,125.05",Sheltered Accommodation,Gas,17-Jun-22,2223/03,SME,N,
20027958,GAZPROM ENERGY,131.29,Temporary Accommodation,Gas,17-Jun-22,2223/03,SME,N,
10048513,THE QUAY THEATRE AT SUDBURY,"3,606.40",Holiday Activity Funding,"Equipment, Tools & Materials",31-May-22,2223/03,SME,N,
10047445,WHYBROW PROPERTY SOLUTIONS LTD,"8,848.50",Building Services,Repairs,08-Apr-22,2223/03,SME,N,
10047768,WHYBROW PROPERTY SOLUTIONS LTD,"6,476.30",Building Services,Repairs,28-Apr-22,2223/03,SME,N,
10048003,WHYBROW PROPERTY SOLUTIONS LTD,"9,786.04",Kitchens/Bathrooms,Improvements,07-Mar-22,2223/03,SME,N,
10048171,WHYBROW PROPERTY SOLUTIONS LTD,"11,154.70",Kitchens/Bathrooms,Improvements,13-May-22,2223/03,SME,N,
10048275,WHYBROW PROPERTY SOLUTIONS LTD,841,Building Services,Repairs,20-May-22,2223/03,SME,N,
10048283,WHYBROW PROPERTY SOLUTIONS LTD,"10,000.00",Building Services,Repairs,20-May-22,2223/03,SME,N,
10048621,WHYBROW PROPERTY SOLUTIONS LTD,"12,012.52",Building Services,Repairs,06-Jun-22,2223/03,SME,N,
10048622,WHYBROW PROPERTY SOLUTIONS LTD,"2,354.31",Building Services,Repairs,06-Jun-22,2223/03,SME,N,
10048661,WHYBROW PROPERTY SOLUTIONS LTD,"10,629.71",Building Services,Repairs,06-Jun-22,2223/03,SME,N,
10048856,WHYBROW PROPERTY SOLUTIONS LTD,570,Sheltered Units-Gen.Imp,Improvements,09-Jun-22,2223/03,SME,N,
10048857,WHYBROW PROPERTY SOLUTIONS LTD,"10,000.00",Kitchens/Bathrooms,Improvements,26-May-22,2223/03,SME,N,
10048937,WHYBROW PROPERTY SOLUTIONS LTD,"7,000.00",Building Services,Repairs,21-Jun-22,2223/03,SME,N,
10048306,L A C CLEANING CONTRACTORS LIMITED,"1,546.00",Building Services,Repairs,24-May-22,2223/03,SME,N,
10048363,L A C CLEANING CONTRACTORS LIMITED,696,Wenham Depot TDP,General Cleaning,24-May-22,2223/03,SME,Y,50%
10048368,L A C CLEANING CONTRACTORS LIMITED,648.48,Sheltered Accommodation,General Cleaning,24-May-22,2223/03,SME,N,
10048634,L A C CLEANING CONTRACTORS LIMITED,325,Temporary Accommodation,General Cleaning,07-Jun-22,2223/03,SME,N,
10048876,L A C CLEANING CONTRACTORS LIMITED,257.5,Building Services,Repairs,17-Jun-22,2223/03,SME,N,
10049016,L A C CLEANING CONTRACTORS LIMITED,487.25,Innovate Local SIGIF,Misc Supplies & Services Costs,24-Jun-22,2223/03,SME,N,
10048745,ARMSTRONG YORK ASBESTOS ENVIRONMENTAL,"5,223.39",Asbestos Survey & Reinspection,Prof & Consultancy Fees,31-May-22,2223/03,SME,N,
10049047,BAREFOOT & GILLES LTD,"7,500.00",Hadleigh A1071 Workspace,Prof & Consultancy Fees,22-Jun-22,2223/03,SME,N,
10048653,ORSIS UK LTD,"6,384.00",PV Panels,Contracted Services,08-Jun-22,2223/03,SME,N,
10048607,OPUS PEOPLE SOLUTIONS LTD,453.18,Homeless Prevention Fund,Agency Staff,31-May-22,2223/03,SME,N,
10048780,OPUS PEOPLE SOLUTIONS LTD,103.08,Governance,Agency Staff,09-Jun-22,2223/03,SME,N,
10048780,OPUS PEOPLE SOLUTIONS LTD,431.6,Homeless Prevention Fund,Agency Staff,09-Jun-22,2223/03,SME,N,
10048780,OPUS PEOPLE SOLUTIONS LTD,383.48,Housing Standards,Agency Staff,09-Jun-22,2223/03,SME,N,
10048913,OPUS PEOPLE SOLUTIONS LTD,152.18,Governance,Agency Staff,16-Jun-22,2223/03,SME,N,
10048913,OPUS PEOPLE SOLUTIONS LTD,485.55,Homeless Prevention Fund,Agency Staff,16-Jun-22,2223/03,SME,N,
10048913,OPUS PEOPLE SOLUTIONS LTD,128.06,Housing Standards,Agency Staff,16-Jun-22,2223/03,SME,N,
10049051,OPUS PEOPLE SOLUTIONS LTD,152.18,Governance,Agency Staff,23-Jun-22,2223/03,SME,N,
10049051,OPUS PEOPLE SOLUTIONS LTD,172.64,Homeless Prevention Fund,Agency Staff,23-Jun-22,2223/03,SME,N,
10049051,OPUS PEOPLE SOLUTIONS LTD,246.45,Housing Standards,Agency Staff,23-Jun-22,2223/03,SME,N,
10048656,ROSE BUILDERS LTD,"56,013.18",Structural Works,Major Contracts,31-May-22,2223/03,SME,N,
10048515,VERTAS GROUP LTD,"11,200.47",Central Postal Serv,Postage,31-May-22,2223/03,SME,Y,50%
10048699,VERTAS GROUP LTD,"12,276.00",Unapportionable Central OHs,Security Systems,31-May-22,2223/03,SME,N,
10048299,COLLINS SKIP HIRE,275,Building Services,Waste Disposal,23-May-22,2223/03,SME,Y,50%
10048533,COLLINS SKIP HIRE,825,Building Services,Waste Disposal,31-May-22,2223/03,SME,Y,50%
10048763,COLLINS SKIP HIRE,550,Building Services,Waste Disposal,13-Jun-22,2223/03,SME,Y,50%
10048908,COLLINS SKIP HIRE,550,Building Services,Waste Disposal,20-Jun-22,2223/03,SME,Y,50%
10048877,POSTURITE LTD,350,Health & Safety,"Equipment, Tools & Materials",17-Jun-22,2223/03,SME,Y,50%
10048710,4PRINCIPLES CONSTRUCTION LTD,"6,760.71",Mand Disabled Facilities Grant,Grants,09-Jun-22,2223/03,SME,N,
10048663,BIRKETTS LLP,637.5,Organisational Devt,Post-Entry Training,24-May-22,2223/03,LGE,Y,50%
10048794,BIRKETTS LLP,805,Organisational Devt,Legal Expenses,30-Mar-22,2223/03,LGE,Y,50%
10048956,CIRRUS RESEARCH PLC,937.37,Health & Safety,"Equipment, Tools & Materials",20-Jun-22,2223/03,SME,Y,50%
10048225,PENNA PLC,"1,208.32",Food & Safety (General),Agency Staff,18-May-22,2223/03,SME,Y,50%
10048225,PENNA PLC,"1,208.34",Animal Welfare Licensing,Agency Staff,18-May-22,2223/03,SME,Y,50%
10048226,PENNA PLC,"1,208.34",Food & Safety (General),Agency Staff,18-May-22,2223/03,SME,Y,50%
10048226,PENNA PLC,"1,208.34",Animal Welfare Licensing,Agency Staff,18-May-22,2223/03,SME,Y,50%
10048589,"DUNCAN, CAMERON AND HUTCHINSON LTD","1,887.00","16 Queensland, Shotley",Contracted Services,27-May-22,2223/03,SME,N,
10048934,CHEC PLANNING LTD,"6,667.37",Nghbrhd Plan Designations,Prof & Consultancy Fees,20-Jun-22,2223/03,SME,N,
10048834,SUFFOLK MARKET EVENTS,650,Hadleigh Market,Contracted Services,15-Jun-22,2223/03,SME,N,
10048935,SUFFOLK MARKET EVENTS,"1,393.90",BRRP-MarketTownVision&Invest,Prof & Consultancy Fees,01-Jun-22,2223/03,SME,Y,48%
10048498,ADVANCE SUPPLIES,589.5,Sheltered Accommodation,Cleaning Materials,30-May-22,2223/03,SME,N,
10048495,HAYS SPECIALIST RECRUITMENT LTD,"1,944.85",Financial Servs,Agency Staff,30-May-22,2223/03,LGE,Y,50%
10048496,HAYS SPECIALIST RECRUITMENT LTD,"1,120.00",Financial Servs,Agency Staff,30-May-22,2223/03,LGE,Y,50%
10048496,HAYS SPECIALIST RECRUITMENT LTD,"1,680.00",HRA Accountancy,Agency Staff,30-May-22,2223/03,LGE,Y,50%
10048497,HAYS SPECIALIST RECRUITMENT LTD,879.12,Organisational Devt,Agency Staff,30-May-22,2223/03,LGE,Y,50%
10048650,HAYS SPECIALIST RECRUITMENT LTD,672,Financial Servs,Agency Staff,07-Jun-22,2223/03,LGE,Y,50%
10048650,HAYS SPECIALIST RECRUITMENT LTD,"1,008.00",HRA Accountancy,Agency Staff,07-Jun-22,2223/03,LGE,Y,50%
10048698,HAYS SPECIALIST RECRUITMENT LTD,"1,166.91",Financial Servs,Agency Staff,08-Jun-22,2223/03,LGE,Y,50%
10048795,HAYS SPECIALIST RECRUITMENT LTD,"1,120.00",Financial Servs,Agency Staff,13-Jun-22,2223/03,LGE,Y,50%
10048795,HAYS SPECIALIST RECRUITMENT LTD,"1,680.00",HRA Accountancy,Agency Staff,13-Jun-22,2223/03,LGE,Y,50%
10048850,HAYS SPECIALIST RECRUITMENT LTD,"1,555.88",Financial Servs,Agency Staff,15-Jun-22,2223/03,LGE,Y,50%
10048851,HAYS SPECIALIST RECRUITMENT LTD,534.6,Organisational Devt,Agency Staff,15-Jun-22,2223/03,LGE,Y,50%
10048947,HAYS SPECIALIST RECRUITMENT LTD,896,Financial Servs,Agency Staff,21-Jun-22,2223/03,LGE,Y,50%
10048947,HAYS SPECIALIST RECRUITMENT LTD,"1,344.00",HRA Accountancy,Agency Staff,21-Jun-22,2223/03,LGE,Y,50%
10048984,HAYS SPECIALIST RECRUITMENT LTD,"1,944.85",Financial Servs,Agency Staff,22-Jun-22,2223/03,LGE,Y,50%
10049064,HAYS SPECIALIST RECRUITMENT LTD,"1,008.00",Financial Servs,Agency Staff,27-Jun-22,2223/03,LGE,Y,50%
10049064,HAYS SPECIALIST RECRUITMENT LTD,"1,512.00",HRA Accountancy,Agency Staff,27-Jun-22,2223/03,LGE,Y,50%
10048526,RICHARD UTTING ASSOCIATES LLP,"2,890.00",Bourne Hill Wherstead S106 acq,Prof & Consultancy Fees,31-May-22,2223/03,SME,N,
10048747,RICHARD UTTING ASSOCIATES LLP,"1,889.18",Waldingfield Rd S106 Andersons,Prof & Consultancy Fees,31-May-22,2223/03,SME,N,
10048962,PUBLIC SEWER SERVICES,339.09,Assets & Development,Repairs,22-Jun-22,2223/03,SME,N,
10048801,CHARISMA SPATIAL PLANNING LTD T/A ANN SK,"6,406.95",Nghbrhd Plan Designations,Prof & Consultancy Fees,13-Jun-22,2223/03,SME,N,
10048564,THE STOWMARKET GLASS COMPANY LTD,388.6,Building Services,Repairs,13-May-22,2223/03,SME,N,
10048258,ASPECT CONTRACTS LTD,"8,426.00",Asbestos,Improvements,19-May-22,2223/03,LGE,N,
10048774,ASPECT CONTRACTS LTD,"7,034.00",Asbestos,Improvements,31-May-22,2223/03,LGE,N,
10048516,SUPERSTRUCTURES LTD,425,Structural Works,Prof & Consultancy Fees,31-May-22,2223/03,SME,N,
20027951,RIX PETROLEUM (EAST ANGLIA) LTD,"1,826.20",Tenancy Services,Heating Oil,02-Jun-22,2223/03,SME,N,
20027951,RIX PETROLEUM (EAST ANGLIA) LTD,439.1,Wenham Depot,Heating Oil,02-Jun-22,2223/03,SME,Y,50%
20027951,RIX PETROLEUM (EAST ANGLIA) LTD,"2,618.46",Open Spaces,Plant & Vehicle Fuel,02-Jun-22,2223/03,SME,Y,46%
10047791,KNOWLES ASSOCIATES TFM LTD,"4,484.00",RHSSF,"Equipment, Tools & Materials",06-Apr-22,2223/03,SME,N,
10047447,STORETEC SERVICES LTD,581.73,ICT,"Equipment, Tools & Materials",31-Mar-22,2223/03,SME,Y,50%
10048793,STORETEC SERVICES LTD,402.54,ICT,"Equipment, Tools & Materials",31-May-22,2223/03,SME,Y,50%
10048853,STORETEC SERVICES LTD,507.21,ICT,"Equipment, Tools & Materials",30-Apr-22,2223/03,SME,Y,50%
10048315,AIRMAX REMOTE LTD,459.24,Building Services,Plant & Vehicle - Other costs,30-Apr-22,2223/03,SME,Y,50%
10048551,AIRMAX REMOTE LTD,459.24,Building Services,Plant & Vehicle - Other costs,31-May-22,2223/03,SME,Y,50%
10048617,GRAVITAS RECRUITMENT GROUP LTD,"1,500.00",ICT,Agency Staff,06-Jun-22,2223/03,LGE,Y,50%
10048791,GRAVITAS RECRUITMENT GROUP LTD,"2,000.00",ICT,Agency Staff,11-Jun-22,2223/03,LGE,Y,50%
10048930,GRAVITAS RECRUITMENT GROUP LTD,"2,000.00",ICT,Agency Staff,14-May-22,2223/03,LGE,Y,50%
10048931,GRAVITAS RECRUITMENT GROUP LTD,"2,000.00",ICT,Agency Staff,30-May-22,2223/03,LGE,Y,50%
10048932,GRAVITAS RECRUITMENT GROUP LTD,"2,000.00",ICT,Agency Staff,20-Jun-22,2223/03,LGE,Y,50%
10048713,JOHN FORD GROUP LTD,"6,336.34",Mand Disabled Facilities Grant,Grants,09-Jun-22,2223/03,SME,N,
10048986,JOHN FORD GROUP LTD,"13,306.15",Mand Disabled Facilities Grant,Grants,23-Jun-22,2223/03,SME,N,
10049085,JOHN FORD GROUP LTD,"3,105.58",Mand Disabled Facilities Grant,Grants,28-Jun-22,2223/03,SME,N,
10048701,RESIDENTIALLY CHARTERED SURVEYORS,600,Bourne Hill Wherstead S106 acq,Prof & Consultancy Fees,08-Jun-22,2223/03,SME,N,
10048941,IPSWICH TOWN FOOTBALL CLUB CO. LTD,915,ICT,Conference Expenses,28-Mar-22,2223/03,LGE,Y,50%
10048942,IPSWICH TOWN FOOTBALL CLUB CO. LTD,300,ICT,Conference Expenses,30-Mar-22,2223/03,LGE,Y,50%
10048943,IPSWICH TOWN FOOTBALL CLUB CO. LTD,457.5,ICT,Conference Expenses,08-Apr-22,2223/03,LGE,Y,50%
10048419,TOP FLOORS (EAST ANGLIA) LTD,471.24,Building Services,Repairs,25-May-22,2223/03,SME,N,
10048715,LICENCE CHECK LTD,"1,750.00",Health & Safety,Contracted Services,26-May-22,2223/03,SME,Y,50%
10048752,CRB ASSOCIATES,"5,265.00",SCMP & Training - Recharge Wks,Misc Income,10-Jun-22,2223/03,SME,Y,50%
10048896,SUDBURYS,440,Guaranteed Rent Scheme,Rent Payable,20-Jun-22,2223/03,SME,N,
10048594,WILLIAM H BROWN ESTATE AGENTS - SUDBURY,725,Guaranteed Rent Scheme,Rent Payable,06-Jun-22,2223/03,SME,N,
10048502,ABBEYCROFT LEISURE,"23,180.00",Wellbeing CCG Funding,Contributions & Donations,30-May-22,2223/03,LGE,N,
10048660,BELLWAY HOMES LIMITED (ESSEX DIVISION),"152,355.45",Bourne Hill Wherstead S106 acq,Prof & Consultancy Fees,30-May-22,2223/03,LGE,N,
10048777,A C LEIGH (NORWICH) LTD,305.89,Building Services,"Equipment, Tools & Materials",07-Jun-22,2223/03,SME,N,
10048411,DAVID STAGG & ASSOCIATES LTD T/A DSA ELE,"20,437.33",Rewiring,Major Contracts,29-Apr-22,2223/03,SME,N,
10048901,3 POINT PROPERTY MANAGEMENT LTD,550,Guaranteed Rent Scheme,Rent Payable,20-Jun-22,2223/03,SME,N,
10048859,COOKS BLIND AND SHUTTERS LTD,532,Chilton Depot,Grounds & Site Maintenance,17-Jun-22,2223/03,SME,Y,50%
10048860,EDMUNDSON ELECTRICAL LTD (IPSWICH),354.3,Building Services,Repairs,07-Jun-22,2223/03,LGE,N,
10048293,WEST SUFFOLK COUNCIL,"119,646.07",Legal,Contributions to other Bodies,23-May-22,2223/03,LGE,Y,50%
10048588,WEST SUFFOLK COUNCIL,"42,767.41",Community Safety-General,Contributions & Donations,05-May-22,2223/03,LGE,N,
10048689,WEST SUFFOLK COUNCIL,500,Community Safety-CCTV,"Equipment, Tools & Materials",27-Apr-22,2223/03,LGE,N,
10048988,DG ACCESSIBLE DESIGNS,"1,862.86",Mand Disabled Facilities Grant,Grants,17-Mar-22,2223/03,SME,N,
10048696,APTL ENTERPRISES LTD,"3,652.00",PV Panels,Contracted Services,31-May-22,2223/03,SME,Y,44%
10048697,APTL ENTERPRISES LTD,"4,648.00",PV Panels,Contracted Services,31-May-22,2223/03,SME,Y,44%
10048831,APTL ENTERPRISES LTD,"5,581.00",PV Panels,Repairs,09-Jun-22,2223/03,SME,N,
10048733,ANGLIA COMMERCIAL FLOORING LTD,718.23,Building Services,Repairs,09-Jun-22,2223/03,SME,N,
10048736,ANGLIA COMMERCIAL FLOORING LTD,621.68,Building Services,Repairs,09-Jun-22,2223/03,SME,N,
10048737,ANGLIA COMMERCIAL FLOORING LTD,282.51,Building Services,Repairs,09-Jun-22,2223/03,SME,N,
20027952,ANGLIAN WATER BUS (NAT) LTD T/A WAVE,135.3,C Parks General,Water Rates - Metered,13-Jun-22,2223/03,LGE,N,
20027952,ANGLIAN WATER BUS (NAT) LTD T/A WAVE,713.93,Chilton Depot,Water Rates - Metered,13-Jun-22,2223/03,LGE,Y,50%
20027952,ANGLIAN WATER BUS (NAT) LTD T/A WAVE,4.1,Friars Meadow Sudb,Water Rates - Metered,13-Jun-22,2223/03,LGE,N,
20027952,ANGLIAN WATER BUS (NAT) LTD T/A WAVE,43,General Rechargeable Works,Misc Supplies & Services Costs,13-Jun-22,2223/03,LGE,N,
20027952,ANGLIAN WATER BUS (NAT) LTD T/A WAVE,57.58,HQ Energy,Water Rates - Metered,13-Jun-22,2223/03,LGE,N,
20027952,ANGLIAN WATER BUS (NAT) LTD T/A WAVE,624.06,Public Conveniences,Water Rates - Metered,13-Jun-22,2223/03,LGE,N,
20027952,ANGLIAN WATER BUS (NAT) LTD T/A WAVE,"2,315.66",Sheltered Accommodation,Water Rates - Metered,13-Jun-22,2223/03,LGE,N,
20027952,ANGLIAN WATER BUS (NAT) LTD T/A WAVE,130.95,Temporary Accommodation,Water Rates - Metered,13-Jun-22,2223/03,LGE,N,
20027952,ANGLIAN WATER BUS (NAT) LTD T/A WAVE,163.96,Tenancy Services,Water Rates - Metered,13-Jun-22,2223/03,LGE,N,
20027949,IMSERV EUROPE LTD,288.4,Wenham Depot,Electricity,19-May-22,2223/03,LGE,Y,50%
10048819,STUDLEY CAPITAL LIMITED,"4,512.50",Hamilton Road Regeneration,Prof & Consultancy Fees,14-Jun-22,2223/03,ST,N,
10048616,GREENACRE RECRUITMENT LTD,"7,666.62",CB Lettings,Recruitment,09-May-22,2223/03,SME,Y,50%
10048601,TIAA LTD,"4,506.38",Internal Audit,Contracted Services,01-Jun-22,2223/03,SME,Y,50%
10048602,TIAA LTD,"4,506.38",Internal Audit,Contracted Services,03-May-22,2223/03,SME,Y,50%
10048904,BYCHOICE LTD,950,Guaranteed Rent Scheme,Rent Payable,20-Jun-22,2223/03,SME,N,
10048662,LAND USE CONSULTANTS LTD,"4,738.00",Devt Policy & Local Plans,Prof & Consultancy Fees,31-Mar-22,2223/03,SME,Y,50%
10048902,REEFER PROPERTIES LTD,695,Guaranteed Rent Scheme,Rent Payable,20-Jun-22,2223/03,SME,N,
10048603,PRIVATE LANDLORD,675,Guaranteed Rent Scheme,Rent Payable,07-Jun-22,2223/03,ST,N,
10049045,PRIVATE LANDLORD,675,Guaranteed Rent Scheme,Rent Payable,27-Jun-22,2223/03,ST,N,
10048900,PRIVATE LANDLORD,650,Guaranteed Rent Scheme,Rent Payable,20-Jun-22,2223/03,SME,N,
10048899,PRIVATE LANDLORD,"1,198.00",Guaranteed Rent Scheme,Rent Payable,20-Jun-22,2223/03,ST,N,
10048751,BUCHER MUNICIPAL LTD,818.48,Street & Major Road Cleansing,"Equipment, Tools & Materials",09-Jun-22,2223/03,LGE,N,
10048817,CHURCHES CONSERVATION TRUST,"75,288.00",CIL Funded REFCUS,Grants,15-Jun-22,2223/03,SME,N,
10049041,SEQUENCE UK LTD (WILLIAM H BROWN),700,Guaranteed Rent Scheme,Rent Payable,27-Jun-22,2223/03,LGE,N,
10048898,PRIVATE LANDLORD,550,Guaranteed Rent Scheme,Rent Payable,20-Jun-22,2223/03,ST,N,
10049044,PRIVATE LANDLORD,700,Guaranteed Rent Scheme,Rent Payable,27-Jun-22,2223/03,ST,N,
10049055,PRIVATE LANDLORD,490,Guaranteed Rent Scheme,Rent Payable,27-Jun-22,2223/03,SME,N,
20027954,PRIVATE LANDLORD,"1,320.00",Guaranteed Rent Scheme,Rent Payable,14-Jun-22,2223/03,SME,N,
20027954,PRIVATE LANDLORD,750,Guaranteed Rent Scheme,Misc Supplies & Services Costs,14-Jun-22,2223/03,SME,N,
10048600,AMPLIS CONSTRUCTION LTD,"7,136.00",Building Services,BMBS Repairs Work,30-May-22,2223/03,SME,N,
10048591,PRIVATE LANDLORD,786.5,Guaranteed Rent Scheme,Rent Payable,06-Jun-22,2223/03,ST,N,
10048647,EASTLIGHT HOMES (GREENACRES),"1,100.33",Homeless Prevention Fund,Misc Supplies & Services Costs,07-Jun-22,2223/03,SME,N,
10048762,PRIVATE LANDLORD,650,Guaranteed Rent Scheme,Rent Payable,13-Jun-22,2223/03,ST,N,
10048642,COUNTRYSTYLE RECYCLING LTD,"4,746.71",Bring Sites,Contracted Services,31-May-22,2223/03,SME,N,
10048614,ANDERSON DESIGN & BUILD LIMITED,"29,491.53",Waldingfield Rd S106 Andersons,Prof & Consultancy Fees,22-May-22,2223/03,SME,N,
10049063,ANDERSON DESIGN & BUILD LIMITED,"364,466.96",Waldingfield Rd S106 Andersons,Prof & Consultancy Fees,21-Jun-22,2223/03,SME,N,
10048592,PRIVATE LANDLORD,700,Guaranteed Rent Scheme,Rent Payable,06-Jun-22,2223/03,ST,N,
10048620,PRIVATE LANDLORD,800,Guaranteed Rent Scheme,Rent Payable,07-Jun-22,2223/03,ST,N,
20027945,PRIVATE LANDLORD,750,Guaranteed Rent Scheme,Misc Supplies & Services Costs,31-May-22,2223/03,ST,N,
10049007,R HARBORNE PLUMBING SERVICES,"5,210.00",Mand Disabled Facilities Grant,Grants,23-Jun-22,2223/03,SME,N,
10048604,PRIVATE LANDLORD,800,Guaranteed Rent Scheme,Rent Payable,07-Jun-22,2223/03,SME,N,
10048290,ARAN INSULATION LTD,"28,127.46",Insulation Imps,Major Contracts,23-May-22,2223/03,SME,N,
10048707,ARAN INSULATION LTD,"1,830.00",Insulation Imps,Improvements,09-Jun-22,2223/03,SME,N,
10048830,ARAN INSULATION LTD,760,Insulation Imps,Improvements,14-Jun-22,2223/03,SME,N,
10048867,ARAN INSULATION LTD,"5,679.52",Building Services,Repairs,16-Jun-22,2223/03,SME,N,
10048868,ARAN INSULATION LTD,856.45,Insulation Imps,Improvements,16-Jun-22,2223/03,SME,N,
10048868,ARAN INSULATION LTD,903,Insulation Imps,Improvements,16-Jun-22,2223/03,SME,N,
10049048,PRIVATE LANDLORD,500,Guaranteed Rent Scheme,Rent Payable,27-Jun-22,2223/03,ST,N,
10049065,PRIVATE LANDLORD,580,Guaranteed Rent Scheme,Rent Payable,28-Jun-22,2223/03,ST,N,
10048535,IAN BOOTH CONSULTANT ENGINEER LTD,953.4,Open Spaces,Contracted Services,31-May-22,2223/03,SME,N,
10048803,DAVID TOLSON PARTNERSHIP LTD,437.5,Tenancy Services,Prof & Consultancy Fees,13-Jun-22,2223/03,SME,N,
10049053,PRIVATE LANDLORD,550,Guaranteed Rent Scheme,Rent Payable,27-Jun-22,2223/03,ST,N,
10048593,IPSERV LTD,19.59,Policy & Strategy (H & W),Commercial Printing,01-Jun-22,2223/03,SME,N,
10048593,IPSERV LTD,"1,423.34",Communications,Commercial Printing,01-Jun-22,2223/03,SME,N,
10048593,IPSERV LTD,576.63,Central Printing,Commercial Printing,01-Jun-22,2223/03,SME,N,
10048630,IPSERV LTD,162,Policy & Strategy (H & W),Misc Supplies & Services Costs,06-Jun-22,2223/03,SME,N,
10048630,IPSERV LTD,"1,074.04",Communications,Commercial Printing,06-Jun-22,2223/03,SME,N,
10048630,IPSERV LTD,274.72,Central Printing,Commercial Printing,06-Jun-22,2223/03,SME,N,
10048864,JACKSON LIFT SERVICES LTD,440,Sheltered Accommodation,Repairs,11-May-22,2223/03,LGE,N,
10048619,DAVID BURR LETTINGS,700,Guaranteed Rent Scheme,Rent Payable,07-Jun-22,2223/03,SME,N,
10048409,FOURWAYS VEHICLE SOLUTIONS LTD,558.6,Building Services,Lease Cars - Payment,20-May-22,2223/03,SME,Y,50%
10048637,FOURWAYS VEHICLE SOLUTIONS LTD,333.5,Building Services,Lease Cars - Payment,30-May-22,2223/03,SME,Y,50%
10048804,START AFRESH CLEANING LTD,561.67,Street & Major Road Cleansing,General Cleaning,14-Jun-22,2223/03,SME,N,
10048805,START AFRESH CLEANING LTD,515.67,Street & Major Road Cleansing,General Cleaning,01-Jun-22,2223/03,SME,N,
10048135,REGENCY GUARDING & EVENTS LTD,620,Open Spaces,Contracted Services,12-May-22,2223/03,SME,N,
10048770,REGENCY GUARDING & EVENTS LTD,630,Open Spaces,Contracted Services,10-Jun-22,2223/03,SME,N,
10048761,PRIVATE LANDLORD,715,Guaranteed Rent Scheme,Rent Payable,13-Jun-22,2223/03,SME,N,
10048768,SHJ HOMES LTD,550,Guaranteed Rent Scheme,Rent Payable,13-Jun-22,2223/03,SME,N,
10048903,PRIVATE LANDLORD,500,Guaranteed Rent Scheme,Rent Payable,20-Jun-22,2223/03,ST,N,
10048466,HIVE,500,Grants & Contrbns,Contributions & Donations,27-May-22,2223/03,SME,N,
10048766,PRIVATE LANDLORD,675,Guaranteed Rent Scheme,Rent Payable,13-Jun-22,2223/03,ST,N,
10048760,PRIVATE LANDLORD,500,Guaranteed Rent Scheme,Rent Payable,13-Jun-22,2223/03,ST,N,
10048927,DUDLEY SMITH PARTNERSHIP LTD,600,GF - Misc Capital Receipts,Prof & Consultancy Fees,21-Jun-22,2223/03,SME,N,
10048771,PRIVATE LANDLORD,650,Guaranteed Rent Scheme,Rent Payable,13-Jun-22,2223/03,ST,N,
10048897,PRIVATE LANDLORD,650,Guaranteed Rent Scheme,Rent Payable,20-Jun-22,2223/03,ST,N,
10048690,M CHISNALL & SONS LTD,"2,640.00",Temporary Accommodation,Repairs,24-Mar-22,2223/03,SME,N,
10048691,M CHISNALL & SONS LTD,285,Temporary Accommodation,Repairs,24-Mar-22,2223/03,SME,N,
10048776,PRIVATE LANDLORD,695,Guaranteed Rent Scheme,Rent Payable,13-Jun-22,2223/03,ST,N,
20027961,HAMILTON SMITH LETTINGS,573.36,Guaranteed Rent Scheme,Rent Payable,21-Jun-22,2223/03,SME,N,
10048659,JB PROPERTY SOLUTIONS (SUFFOLK) LTD T/A,455,Guaranteed Rent Scheme,Rent Payable,08-Jun-22,2223/03,SME,N,
10048792,DATATANK LTD,"8,580.00",Shared Revenues Partnership,Misc Supplies & Services Costs,13-Jun-22,2223/03,SME,N,
10048837,FORK KITCHEN & DELI,516.08,Business Innovation Grants,Grants,15-Jun-22,2223/03,SME,N,
10048418,THE FAMILY & COMMUNITY NETWORK-NUMBER 72,650,Grants & Contrbns,Contributions & Donations,27-May-22,2223/03,SME,N,
10048785,KBM HOUSE SHARE & PROPERTY MANAGEMENT LT,550,Guaranteed Rent Scheme,Rent Payable,13-Jun-22,2223/03,SME,N,
10048855,EASTLIGHT COMMUNITY HOMES (SUNDRY DEBTOR,450,Temporary Accommodation,Prof & Consultancy Fees,10-May-22,2223/03,SME,N,
20027953,PRIVATE LANDLORD,550,Guaranteed Rent Scheme,Rent Payable,13-Jun-22,2223/03,SME,N,
20027956,PRIVATE LANDLORD,397.8,Guaranteed Rent Scheme,Rent Payable,16-Jun-22,2223/03,SME,N,
20027956,PRIVATE LANDLORD,750,Guaranteed Rent Scheme,Misc Supplies & Services Costs,16-Jun-22,2223/03,SME,N,
10048895,JOSEPH PROPERTY LETTINGS LTD,"1,125.00",Rent Deposit Scheme,Misc Premises Costs,20-Jun-22,2223/03,SME,N,
10048835,PRIVATE LANDLORD,640,Rent Deposit Scheme,Misc Premises Costs,15-Jun-22,2223/03,ST,N,
10048836,PREPARED MEDIA LTD,"1,200.00",Financial Servs,Recruitment,15-Jun-22,2223/03,SME,Y,50%
10049022,TALENTPREDIX LTD,733.5,Organisational Devt,Corporate Training,23-Jun-22,2223/03,SME,Y,50%
20027960,PRIVATE LANDLORD,880,Guaranteed Rent Scheme,Rent Payable,22-Jun-22,2223/03,ST,N,
10049017,KADA RESEARCH LTD,"3,500.00","BRRP-Hamilton,Boreham&BelleVue",Prof & Consultancy Fees,23-Jun-22,2223/03,SME,N,
10048959,EVENT PRODUCTION SOUND LIGHT LTD,295,Policy & Strategy (H & W),Misc Supplies & Services Costs,21-Jun-22,2223/03,SME,N,
10048953,G4S CASH SOLUTIONS LTD,-17.62,Financial Servs,Contracted Services,21-Jun-22,2223/03,LGE,Y,50%
